{"text_format":"1","workbook":"xlsx","n_sheets":4,"sheets":["Master","Retail input","service input","service revenue"],"not_rendered":{"charts":0,"images":0,"macros":1,"external_links":1,"defined_names":63,"comments":0,"pivot_tables":0},"unopened":[],"bounds":{"document_bytes":16777216,"sheet_cells":100000,"rows_first":2000,"rows_last":500,"rows_between":2000,"halvings":0,"cell_chars":16384,"cell_head_chars":4096},"cells_cut":0,"cells_raw":0,"read":"whole","date_system":"1900"}

{"sheet":"Master","index":0,"n_rows":92,"n_cols":16,"rows_kept":92,"cut":false,"hidden":false,"merged":[[7,1,7,13],[8,3,8,13],[8,1,9,1],[8,2,9,2]]}
[]
[]
[]
[]
[]
[]
[]
[]
[null,"Date","Time","PARTICULARS"]
[null,null,null,"service","Description","Unit price","Qty",null,"Category","Box no","Category","Item name","Unit Price","Qty"]
[null,null,null,"choose_service","**","*",null,null,"Choose","Choose","*","*","*",null,null,200]
[null,"2013-12-27",null,"Pedicure","herbal",200,1,null,"Choose","Choose","*","*","*",null,null,90]
[null,"2013-12-27",null,"Threading","eyebrow",30,3,null,"Choose","Choose","*","*","*",null,null,175]
[null,"2013-12-27",null,"Waxing","full arms",175,1,null,"Choose","Choose","*","*","*",null,null,30]
[null,"2013-12-25",null,"Threading","eyebrow",30,1,null,"Choose","Choose","*","*","*"]
[null,"2013-12-25",null,"choose_service","**","*",null,null,"Choose","Choose","*","*","*",null,null,250]
[null,"2013-12-23",null,"bleach","niconi bleach",250,1,null,"Choose","Choose","*","*","*",null,null,1000]
[null,"2013-12-23",null,"facial","Shanaz",1000,1,null,"Choose","Choose","*","*","*",null,null,30]
[null,"2013-12-23",null,"Threading","eyebrow",30,1,null,"Choose","Choose","*","*","*",null,null,200]
[null,"2013-12-23",null,"Hair_colouring ","dye",200,1,null,"Choose","Choose","*","*","*",null,null,50]
[null,"2013-12-23",null,"hair_cut","stright cut",50,1,null,"Choose","Choose","*","*","*",null,null,50]
[null,"2013-12-20",null,"hair_cut","stright cut",50,1,null,"Choose","Choose","*","*","*",null,null,250]
[null,"2013-12-20",null,"facial","Gold (Fair & Glow) Facial",250,1,null,"Choose","Choose","*","*","*",null,null,100]
[null,"2013-12-20",null,"hair_cut","stright cut",50,2,null,"Choose","Choose","*","*","*",null,null,60]
[null,"2013-12-20",null,"Threading","eyebrow",30,2,null,"Choose","Choose","*","*","*",null,null,250]
[null,"2013-12-19",null,"bleach","niconi bleach",250,1,null,"Choose","Choose","*","*","*",null,null,60]
[null,"2013-12-19",null,"Threading","eyebrow",30,2,null,"Choose","Choose","*","*","*",null,null,30]
[null,"2013-12-16",null,"Threading","eyebrow",30,1,null,"Choose","Choose","*","*","*"]
[null,"2013-12-16",null,"choose_service","**","*",null,null,"Choose","Choose","*","*","*",null,null,50]
[null,"2013-12-16",null,"hair_cut","stright cut",50,1,null,"Choose","Choose","*","*","*"]
[null,"2013-12-16",null,"choose_service","**","*",null,null,"Choose","Choose","*","*","*",null,null,60]
[null,"2013-12-14",null,"Threading","eyebrow",30,2,null,"Choose","Choose","*","*","*",null,null,20]
[null,"2013-12-14",null,"Threading","upperlips, chin,forehead",20,1,null,"Choose","Choose","*","*","*",null,null,80]
[null,"2013-12-10",null,"hair_cut","u cut",80,1,null,"Choose","Choose","*","*","*",null,null,500]
[null,"2013-12-10",null,"Anti_dandruff ","Anti dandruff ",500,1,null,"Choose","Choose","*","*","*",null,null,200]
[null,"2013-12-10",null,"Waxing","full arms",200,1,null,"Choose","Choose","*","*","*",null,null,30]
[null,"2013-12-10",null,"Threading","eyebrow",30,1,null,"Choose","Choose","*","*","*",null,null,150]
[null,"2013-12-10",null,"Hair_colouring ","dye",150,1,null,"Choose","Choose","*","*","*",null,null,1500]
[null,"2013-12-10",null,"facial","Shanaz",750,2,null,"Choose","Choose","*","*","*",null,null,400]
[null,"2013-12-10",null,"bleach","niconi bleach",200,2,null,"Choose","Choose","*","*","*",null,null,200]
[null,"2013-12-10",null,"Waxing","full arms",200,1,null,"Choose","Choose","*","*","*",null,null,30]
[null,"2013-12-10",null,"Threading","eyebrow",30,1,null,"Choose","Choose","*","*","*",null,null,100]
[null,"2013-12-10",null,"hair_cut","u cut",100,1,null,"Choose","Choose","*","*","*",null,null,150]
[null,"2013-12-08",null,"hair_cut","u cut",150,1,null,"Choose","Choose","*","*","*",null,null,250]
[null,"2013-12-08",null,"facial","Gold (Fair & Glow) Facial",250,1,null,"Choose","Choose","*","*","*",null,null,30]
[null,"2013-12-08",null,"Threading","eyebrow",30,1,null,"Choose","Choose","*","*","*",null,null,200]
[null,"2013-12-08",null,"bleach","niconi bleach",200,1,null,"Choose","Choose","*","*","*",null,null,400]
[null,"2013-12-07",null,"Hair_wash_shampoo","Oil massage & hair wash",200,2,null,"Choose","Choose","*","*","*",null,null,800]
[null,"2013-12-07",null,"facial","Shanaz",800,1,null,"Choose","Choose","*","*","*",null,null,30]
[null,"2013-12-07",null,"Threading","eyebrow",30,1,null,"Choose","Choose","*","*","*",null,null,250]
[null,"2013-12-04",null,"facial","Gold (Fair & Glow) Facial",250,1,null,"Choose","Choose","*","*","*",null,null,200]
[null,"2013-12-04",null,"bleach","niconi bleach",200,1,null,"Choose","Choose","*","*","*",null,null,30]
[null,"2013-12-04",null,"Threading","eyebrow",30,1,null,"Choose","Choose","*","*","*",null,null,200]
[null,"2013-12-04",null,"Hair_colouring ","dye",200,1,null,"Choose","Choose","*","*","*",null,null,120]
[null,"2013-12-04",null,"hair_cut","u cut",120,1,null,"Choose","Choose","*","*","*",null,null,30]
[null,"2013-12-04",null,"Threading","eyebrow",30,1,null,"Choose","Choose","*","*","*",null,null,80]
[null,"2013-12-04",null,"hair_cut","u cut",80,1,null,"Choose","Choose","*","*","*",null,null,30]
[null,"2013-12-04",null,"Threading","eyebrow",30,1,null,"Choose","Choose","*","*","*"]
[null,"2013-12-03",null,"choose_service","**","*",null,null,"Choose","Choose","*","*","*",null,null,80]
[null,"2013-12-03",null,"hair_cut","Baby cut",80,1,null,"Choose","Choose","*","*","*",null,null,250]
[null,"2013-12-03",null,"Hair_colouring ","dye",250,1,null,"Choose","Choose","*","*","*",null,null,60]
[null,"2013-12-03",null,"Threading","eyebrow",30,2,null,"Choose","Choose","*","*","*",null,null,200]
[null,"2013-12-03",null,"facial","Eye facial",200,1,null,"Choose","Choose","*","*","*",null,null,20]
[null,"2013-12-03",null,"Threading","upperlips, chin,forehead",20,1,null,"Choose","Choose","*","*","*",null,null,30]
[null,"2013-12-03",null,"Threading","eyebrow",30,1,null,"Choose","Choose","*","*","*",null,null,30]
[null,"2013-11-29",null,"Threading","eyebrow",30,1,null,"Choose","Choose","*","*","*",null,null,50]
[null,"2013-11-29",null,"hair_cut","stright cut",50,1,null,"Choose","Choose","*","*","*",null,null,100]
[null,"2013-11-29",null,"hair_cut","v cut",100,1,null,"Choose","Choose","*","*","*",null,null,30]
[null,"2013-11-29",null,"Threading","eyebrow",30,1,null,"Choose","Choose","*","*","*",null,null,90]
[null,"2013-11-25",null,"Threading","eyebrow",30,3,null,"Choose","Choose","*","*","*"]
[null,"2013-11-25",null,"choose_service","**","*",null,null,"Choose","Choose","*","*","*",null,null,60]
[null,"2013-11-14",null,"Threading","eyebrow",30,2,null,"Choose","Choose","*","*","*"]
[null,"2013-11-14",null,"choose_service","**","*",null,null,"Choose","Choose","*","*","*",null,null,30]
[null,"2013-11-13",null,"Threading","eyebrow",30,1,null,"Choose","Choose","*","*","*",null,null,200]
[null,"2013-11-13",null,"facial","Gold (Fair & Glow) Facial",200,1,null,"Choose","Choose","*","*","*",null,null,200]
[null,"2013-11-13",null,"facial","Gold (Fair & Glow) Facial",200,1,null,"Choose","Choose","*","*","*",null,null,30]
[null,"2013-11-13",null,"Threading","eyebrow",30,1,null,"Choose","Choose","*","*","*",null,null,250]
[null,"2013-11-11",null,"bleach","niconi bleach",250,1,null,"Choose","Choose","*","*","*",null,null,200]
[null,"2013-11-11",null,"facial","Gold (Fair & Glow) Facial",200,1,null,"Choose","Choose","*","*","*",null,null,30]
[null,"2013-11-11",null,"Threading","eyebrow",30,1,null,"Choose","Choose","*","*","*"]
[null,"2013-11-11",null,"choose_service","**","*",null,null,"Choose","Choose","*","*","*",null,null,0]
[null,"2013-11-01",null,null,null,null,null,null,null,1,null,null,15,5,null,250]
[null,"2013-11-05",null,"facial","Gold (Fair & Glow) Facial",250,1,null,"Choose","Choose","*","*","*"]
[null,"2013-11-05",null,"choose_service","**","*",null,null,"Choose","Choose","*","*","*",null,null,150]
[null,"2013-11-01",null,"bleach","niconi bleach",150,1,null,"Choose","Choose","*","*","*",null,null,50]
[null,"2013-11-01",null,"hair_cut","stright cut",50,1,null,"Choose","Choose","*","*","*",null,null,100]
[null,"2013-11-01",null,"Hair_colouring ","dye",100,1,null,"Choose","Choose","*","*","*",null,null,300]
[null,"2013-11-01",null,"facial","fruit facial",300,1,null,"Choose","Choose","*","*","*",null,null,30]
[null,"2013-11-01",null,"Threading","eyebrow",30,1,null,"Choose","Choose","*","*","*",null,null,30]
[null,"2013-10-29",null,"Threading","eyebrow",30,1,null,"Choose","Choose","*","*","*",null,null,300]
[null,"2013-10-29",null,"Threading","eyebrow",30,1,null,"Choose","Choose","*","*","*",null,null,0]
[null,"2013-11-01",null,null,null,null,null,null,null,1,null,null,20,8]

{"sheet":"Retail input","index":1,"n_rows":750,"n_cols":34,"rows_kept":750,"cut":false,"hidden":false,"merged":[[4,22,4,24],[4,25,4,27],[4,28,4,30],[4,31,4,33],[5,4,6,4],[5,5,6,5],[5,6,6,6],[4,4,4,6],[4,7,4,9],[4,10,4,12],[4,13,4,15],[4,16,4,18],[4,19,4,21]]}
[]
[null,null,"Quick search"]
[null,null,null,{"$f":"VLOOKUP($C$3,$C$8:$G$750,2,FALSE)","v":0},{"$f":"VLOOKUP($C$3,$C$8:$G$750,3,FALSE)","v":0},{"$f":"VLOOKUP($C$3,$C$8:$G$750,4,FALSE)","v":0},{"$f":"VLOOKUP($C$3,$C$8:$G$750,5,FALSE)","v":0}]
[]
[null,null,null,null,"Inventory",null,null,"2013-10-01",null,null,"2014-03-01",null,null,"2015-02-01"]
[null,"Category","Box no","Item name","Total Purchased","Total Sold","Stock",{"$f":"H5","v":"2013-10-01"},{"$f":"H5","v":"2013-10-01"},{"$f":"H5","v":"2013-10-01"},{"$f":"K5","v":"2014-03-01"},{"$f":"K5","v":"2014-03-01"},{"$f":"K5","v":"2014-03-01"},{"$f":"N5","v":"2015-02-01"},{"$f":"N5","v":"2015-02-01"},{"$f":"N5","v":"2015-02-01"}]
[null,null,null,null,null,null,null,"Cost","MRP","Qty","Cost","MRP","Qty","Cost","MRP","Qty","Cost","MRP","Qty","Cost","MRP","Qty","Cost","MRP","Qty","Cost","MRP","Qty","Cost","MRP","Qty","Cost","MRP","Qty"]
[null,"Fancy",1,{"$error":"#N/A"},{"$f":"SUMIF($K$7:$BC$7,$M$7,K8:BC8)","v":0},null,{"$f":"E8-F8","v":0},null,5]
[null,"Fancy",2,{"$error":"#N/A"},{"$f":"SUMIF($K$7:$BC$7,$M$7,K9:BC9)","v":0},null,{"$f":"E9-F9","v":0}]
[null,"Fancy",3,{"$error":"#N/A"},0,null,0]
[null,"Fancy",4,{"$error":"#N/A"},0,null,0]
[null,"Fancy",5,"clip",2,null,2,null,40,null,null,40,2]
[null,"Fancy",6,"clip",6,null,6,null,25,null,null,25,6]
[null,"Fancy",7,"clip",1,null,1,null,25,null,null,25,1]
[null,"Fancy",9,"clip",3,null,3,null,25,null,null,25,3]
[null,"Fancy",13,"stone clip",2,null,2,null,80,null,null,80,2]
[null,"Fancy","13a","oval  clip",1,null,1,null,72,null,null,72,1]
[null,"Fancy","13b","catch clip",7,null,7,null,10,null,null,10,7]
[null,"Fancy","13c","kuchi clip",11,null,11,null,12,null,null,12,11]
[null,"Fancy","13d","nail polish",14,null,14,null,12,null,null,12,14]
[null,"Fancy",14,"clip",3,null,3,null,25,null,null,25,3]
[null,"Fancy",15,"box clip",1,null,1,null,100,null,null,100,1]
[null,"Fancy","17a","kutties clip",3,null,3,null,5,null,null,5,3]
[null,"Fancy","17b","kutties clip",3,null,3,null,10,null,null,10,3]
[null,"Fancy",18,"band stone",10,null,10,null,50,null,null,50,10]
[null,"Fancy",19,"kushi clip",2,null,2,null,12,null,null,12,2]
[null,"Fancy",20,"reeth",14,null,14,null,15,null,null,15,14]
[null,"Fancy",21,"reeth",9,null,9,null,16.5,null,null,16.5,9]
[null,"Fancy","21a","banana clip",8,null,8,null,20,null,null,20,8]
[null,"Fancy",22,"band",80,null,80,null,3,null,null,3,80]
[null,"Fancy",23,"reeth",7,null,7,null,35,null,null,35,7]
[null,"Fancy",28,"kushi clip small",109,null,109,null,3,null,null,3,109]
[null,"Fancy",29,"kushi clip big",134,null,134,null,5,null,null,5,134]
[null,"Fancy",30,"kammal",21,null,21,null,25,null,null,25,21]
[null,"Fancy",33,"kuchi clip",4,null,4,null,10,null,null,10,4]
[null,"Fancy",34,"block clip",3,null,3,null,8,null,null,8,3]
[null,"Fancy","36a","ceter clip",3,null,3,null,80,null,null,80,3]
[null,"Fancy","36b","center clip",4,null,4,null,75,null,null,75,4]
[null,"Fancy","36c","center clip",1,null,1,null,70,null,null,70,1]
[null,"Fancy",37,"stone clip",1,null,1,null,80,null,null,80,1]
[null,"Fancy",38,"stone clip",1,null,1,null,80,null,null,80,1]
[null,"Fancy","38a","clip",1,null,1,null,110,null,null,110,1]
[null,"Fancy","38b","clip",2,null,2,null,72,null,null,72,2]
[null,"Fancy",39,"band",35,null,35,null,3,null,null,3,35]
[null,"Fancy",40,"clip",2,null,2,null,18,null,null,18,2]
[null,"Fancy",42,"clip",2,null,2,null,15,null,null,15,2]
[null,"Fancy",43,"clip",3,null,3,null,15,null,null,15,3]
[null,"Fancy",45,"pattai clip sagar",7,null,7,null,30,null,null,30,7]
[null,"Fancy","46a","clip",1,null,1,null,95,null,null,95,1]
[null,"Fancy","46b","clip",4,null,4,null,15,null,null,15,4]
[null,"Fancy","46c","clip",4,null,4,null,25,null,null,25,4]
[null,"Fancy",49,"clip",2,null,2,null,35,null,null,35,2]
[null,"Fancy",50,"clip",1,null,1,null,38,null,null,38,1]
[null,"Fancy",52,"clip",3,null,3,null,25,null,null,25,3]
[null,"Fancy",53,"kutties clip",8,null,8,null,12,null,null,12,8]
[null,"Fancy",54,"clip",2,null,2,null,35,null,null,35,2]
[null,"Fancy",55,"clip",3,null,3,null,98,null,null,98,3]
[null,"Fancy",57,"MILI clip",6,null,6,null,110,null,null,110,6]
[null,"Fancy",58,"catch clip",6,null,6,null,50,null,null,50,6]
[null,"Fancy",59,"butterfly clip",11,null,11,null,100,null,null,100,11]
[null,"Fancy","59A","butterfly small",11,null,11,null,96,null,null,96,11]
[null,"Fancy","60a","kushi clip",103,null,103,null,5,null,null,5,103]
[null,"Fancy","60b","kushi clip",58,null,58,null,8,null,null,8,58]
[null,"Fancy","60c","kushi clip",15,null,15,null,10,null,null,10,15]
[null,"Fancy","60d","kushi clip",12,null,12,null,1,null,null,1,12]
[null,"Fancy",61,"kammal",270,null,270,null,10,null,null,10,270]
[null,"Fancy","63A","chain",12,null,12,null,13,null,null,13,12]
[null,"Fancy","63B","chain",1,null,1,null,48,null,null,48,1]
[null,"Fancy","63C","chain",2,null,2,null,54,null,null,54,2]
[null,"Fancy","63D","chain",5,null,5,null,38,null,null,38,5]
[null,"Fancy","63E","chain",6,null,6,null,25,null,null,25,6]
[null,"Fancy","63F","chain",12,null,12,null,10,null,null,10,12]
[null,"Fancy","63G","chain",{"$f":"SUMIF($K$7:$BC$7,$M$7,K73:BC73)","v":12},null,{"$f":"E73-F73","v":12},null,20,null,null,20,12]
[null,"Fancy","63H","chain",2,null,2,null,55,null,null,55,2]
[null,"Fancy","63I","chain",1,null,1,null,80,null,null,80,1]
[null,"Fancy","63J","chain",1,null,1,null,95,null,null,95,1]
[null,"Fancy","63K","chain",1,null,1,null,70,null,null,70,1]
[null,"Fancy","63L","pasi, thodu",3,null,3,null,30,null,null,30,3]
[null,"Fancy",69,"band",26,null,26,null,5,null,null,5,26]
[null,"Fancy","69a","band",12,null,12,null,7,null,null,7,12]
[null,"Fancy",70,"band",23,null,23,null,6,null,null,6,23]
[null,"Fancy","70a","band",35,null,35,null,5,null,null,5,35]
[null,"Fancy",71,"slide pin",57,null,57,null,10,null,null,10,57]
[null,"Fancy",72,"flower hairpin",14,null,14,null,10,null,null,10,14]
[null,"Fancy",73,"kannadi bangle",126,null,126,null,"1.50 (per piece)",null,null,"1.50 (per piece)",126]
[null,"Fancy",74,"kannadi bangle",266,null,266,null,"1.20(per  piece)",null,null,"1.20(per  piece)",266]
[null,"Fancy",76,"kalyana bangle",178,null,178,null,"1.50 (per piece)",null,null,"1.50 (per piece)",178]
[null,"Fancy",77,"kalyana bangle",72,null,72,null,"4 (per piece)",null,null,"4 (per piece)",72]
[null,"Fancy","77A","kalyana bangle",46,null,46,null,"5(per piece)",null,null,"5(per piece)",46]
[null,"Fancy",79,"kutties bangle",7,null,7,null,20,null,null,20,7]
[null,"Fancy","79A","kutties bangle",12,null,12,null,20,null,null,20,12]
[null,"Fancy",80,"Bangle",15,null,15,null,70,null,null,70,15]
[null,"Fancy",81,"Bangle",16,null,16,null,40,null,null,40,16]
[null,"Fancy",82,"Bangle",12,null,12,null,20,null,null,20,12]
[null,"Fancy",83,"Bangle",10,null,10,null,20,null,null,20,10]
[null,"Fancy",84,"Bangle",11,null,11,null,20,null,null,20,11]
[null,"Fancy",86,"Bangle",12,null,12,null,20,null,null,20,12]
[null,"Fancy",87,"Bangle",9,null,9,null,35,null,null,35,9]
[null,"Fancy",88,"Bangle",10,null,10,null,20,null,null,20,10]
[null,"Fancy",89,"Bangle",4,null,4,null,70,null,null,70,4]
[null,"Fancy",90,"Bangle",4,null,4,null,50,null,null,50,4]
[null,"Fancy",91,"Bangle",6,null,6,null,80,null,null,80,6]
[null,"Fancy",92,"Bangle",2,null,2,null,150,null,null,150,2]
[null,"Fancy","92A","Bangle",1,null,1,null,195,null,null,195,1]
[null,"Fancy",93,"Bangle",12,null,12,null,20,null,null,20,12]
[null,"Fancy",94,"Bangle",4,null,4,null,50,null,null,50,4]
[null,"Fancy",95,"Bangle",4,null,4,null,50,null,null,50,4]
[null,"Fancy",95,"Bangle",4,null,4,null,50,null,null,50,4]
[null,"Fancy",96,"Bangle",11,null,11,null,20,null,null,20,11]
[null,"Fancy",97,"Bangle",2,null,2,null,130,null,null,130,2]
[null,"Fancy",98,"Bangle",4,null,4,null,80,null,null,80,4]
[null,"Fancy",99,"Bangle",1.5,null,1.5,null,130,null,null,130,1.5]
[null,"Fancy",100,"Bangle",5,null,5,null,100,null,null,100,5]
[null,"Fancy",101,"Bangle",3,null,3,null,170,null,null,170,3]
[null,"Fancy",102,"Bangle",3,null,3,null,170,null,null,170,3]
[null,"Fancy",103,"Bangle",3,null,3,null,130,null,null,130,3]
[null,"Fancy",104,"Bangle",2,null,2,null,130,null,null,130,2]
[null,"Fancy",105,"Bangle",3,null,3,null,130,null,null,130,3]
[null,"Fancy",107,"Bangle",3,null,3,null,130,null,null,130,3]
[null,"Fancy",108,"Bangle",3,null,3,null,130,null,null,130,3]
[null,"Fancy",109,"Bangle",2,null,2,null,180,null,null,180,2]
[null,"Fancy",110,"Bangle",1.5,null,1.5,null,180,null,null,180,1.5]
[null,"Fancy",111,"Bangle",3,null,3,null,130,null,null,130,3]
[null,"Fancy",111,"Bangle",3,null,3,null,130,null,null,130,3]
[null,"Fancy",112,"Bangle",2,null,2,null,180,null,null,180,2]
[null,"Fancy",114,"Bangle",11,null,11,null,20,null,null,20,11]
[null,"Fancy",115,"Bangle",12,null,12,null,35,null,null,35,12]
[null,"Fancy",116,"Bangle",1,null,1,null,80,null,null,80,1]
[null,"Fancy",116,"Bangle",1,null,1,null,80,null,null,80,1]
[null,"Fancy",118,"kundan bangle",1,null,1,null,300,null,null,300,1]
[null,"Fancy",122,"gold bangle",1,null,1,null,75,null,null,75,1]
[null,"Fancy",123,"gold bangle",1,null,1,null,190,null,null,190,1]
[null,"Fancy",124,"gold bangle",1,null,1,null,105,null,null,105,1]
[null,"Fancy",125,"STONE bangle",1,null,1,null,310,null,null,310,1]
[null,"Fancy",126,"chain",1,null,1,null,400,null,null,400,1]
[null,"Fancy",127,"chain",1,null,1,null,235,null,null,235,1]
[null,"Fancy",130,"gold bangle",{"$f":"SUMIF($K$7:$BC$7,$M$7,K137:BC137)","v":1},null,{"$f":"E137-F137","v":1},null,150,null,null,150,1]
[null,"Fancy",131,"chain",1,null,1,null,530,null,null,530,1]
[null,"Fancy",134,"gold bangle",1,null,1,null,180,null,null,180,1]
[null,"Fancy",135,"kalkolusu",1,null,1,null,315,null,null,315,1]
[null,"Fancy",136,"chain",1,null,1,null,195,null,null,195,1]
[null,"Fancy","136a","kundan zimiki",1,null,1,null,54,null,null,54,1]
[null,"Fancy","136b","kundan zimiki",1,null,1,null,60,null,null,60,1]
[null,"Fancy",142,"kalkolusu",2,null,2,null,300,null,null,300,2]
[null,"Fancy",144,"STONE bangle",1,null,1,null,150,null,null,150,1]
[null,"Fancy",145,"STONE bangle",1,null,1,null,190,null,null,190,1]
[null,"Fancy",146,"STONE bangle",1,null,1,null,190,null,null,190,1]
[null,"Fancy",148,"STONE bangle",1,null,1,null,400,null,null,400,1]
[null,"Fancy",149,"STONE bangle",1,null,1,null,190,null,null,190,1]
[null,"Fancy",152,"Bangle",7,null,7,null,60,null,null,60,7]
[null,"Fancy",153,"Bangle",11,null,11,null,40,null,null,40,11]
[null,"Fancy",154,"Bangle",12,null,12,null,35,null,null,35,12]
[null,"Fancy",155,"kammal",1,null,1,null,105,null,null,105,1]
[null,"Fancy","155a","kammal",1,null,1,null,120,null,null,120,1]
[null,"Fancy","155b","kammal",1,null,1,null,120,null,null,120,1]
[null,"Fancy","155c","kammal",1,null,1,null,120,null,null,120,1]
[null,"Fancy",156,"kammal",1,null,1,null,170,null,null,170,1]
[null,"Fancy",157,"kammal",1,null,1,null,170,null,null,170,1]
[null,"Fancy",159,"kammal",1,null,1,null,155,null,null,155,1]
[null,"Fancy",160,"kammal",1,null,1,null,105,null,null,105,1]
[null,"Fancy",165,"Bangle",6,null,6,null,40,null,null,40,6]
[null,"Fancy",166,"Bangle",6,null,6,null,80,null,null,80,6]
[null,"Fancy",168,"Bangle",14,null,14,null,70,null,null,70,14]
[null,"Fancy",169,"Bangle",3,null,3,null,60,null,null,60,3]
[null,"Fancy",170,"Bangle",3,null,3,null,60,null,null,60,3]
[null,"Fancy",171,"Bangle",3,null,3,null,60,null,null,60,3]
[null,"Fancy",173,"neclace",1,null,1,null,125,null,null,125,1]
[null,"Fancy",174,"neclace Kundan",1,null,1,null,90,null,null,90,1]
[null,"Fancy",175,"neclace",1,null,1,null,70,null,null,70,1]
[null,"Fancy",176,"neclace",1,null,1,null,170,null,null,170,1]
[null,"Fancy","176A","neclace",1,null,1,null,100,null,null,100,1]
[null,"Fancy","176B","neclace",1,null,1,null,100,null,null,100,1]
[null,"Fancy","176c","neclace",1,null,1,null,100,null,null,100,1]
[null,"Fancy","176D","neclace",1,null,1,null,95,null,null,95,1]
[null,"Fancy","176e","neclace",1,null,1,null,84,null,null,84,1]
[null,"Fancy","176f","neclace",1,null,1,null,215,null,null,215,1]
[null,"Fancy","176g","neclace",1,null,1,null,60,null,null,60,1]
[null,"Fancy","176h","neclace",1,null,1,null,55,null,null,55,1]
[null,"Fancy","176I","neclace",1,null,1,null,300,null,null,300,1]
[null,"Fancy",177,"reception clip",1,null,1,null,150,null,null,150,1]
[null,"Fancy","177a","kondai",10,null,10,null,35,null,null,35,10]
[null,"Fancy","177b","savuri moodi",1,null,1,null,180,null,null,180,1]
[null,"Fancy","177c","eyebrow pencil ",15,null,15,null,15,null,null,15,15]
[null,"Fancy",178,"neclace kundan",1,null,1,null,50,null,null,50,1]
[null,"Fancy",181,"hair design reception",1,null,1,null,200,null,null,200,1]
[null,"Fancy","181a","hair design reception",16,null,16,null,15,null,null,15,16]
[null,"Fancy",182,"hair design reception",1,null,1,null,250,null,null,250,1]
[null,"Fancy",183,"neclace",1,null,1,null,95,null,null,95,1]
[null,"Fancy","185A","neclace",1,null,1,null,115,null,null,115,1]
[null,"Fancy","185B","neclace",1,null,1,null,115,null,null,115,1]
[null,"Fancy","185c","neclace",1,null,1,null,120,null,null,120,1]
[null,"Fancy","185d","neclace",1,null,1,null,75,null,null,75,1]
[null,"Fancy","185e","neclace",1,null,1,null,75,null,null,75,1]
[null,"Fancy","185f","neclace",1,null,1,null,120,null,null,120,1]
[null,"Fancy","185g","neclace",1,null,1,null,180,null,null,180,1]
[null,"Fancy","189a","pasi",1,null,1,null,150,null,null,150,1]
[null,"Fancy","189b","chain",1,null,1,null,255,null,null,255,1]
[null,"Fancy","189c","chain",1,null,1,null,355,null,null,355,1]
[null,"Fancy","189d","chain",1,null,1,null,360,null,null,360,1]
[null,"Fancy",190,"neclace",1,null,1,null,95,null,null,95,1]
[null,"Fancy","190A","neclace Kundan",{"$f":"SUMIF($K$7:$BC$7,$M$7,K201:BC201)","v":1},null,{"$f":"E201-F201","v":1},null,270,null,null,270,1]
[null,"Fancy","190b","neclace gold",1,null,1,null,250,null,null,250,1]
[null,"Fancy","190c","neclace",1,null,1,null,350,null,null,350,1]
[null,"Fancy","190d","neclace",1,null,1,null,75,null,null,75,1]
[null,"Fancy",191,"green pasi",1,null,1,null,130,null,null,130,1]
[null,"Fancy",192,"neclace",1,null,1,null,250,null,null,250,1]
[null,"Fancy",195,"neclace blue",1,null,1,null,360,null,null,360,1]
[null,"Fancy",197,"white rose u pin",20,null,20,null,290,null,null,290,20]
[null,"Fancy","197A","RING",50,null,50,null,25,null,null,25,50]
[null,"Fancy",198,"hand band",9,null,9,null,8,null,null,8,9]
[null,"Fancy","198a","long malai",1,null,1,null,215,null,null,215,1]
[null,"Fancy","198b","pricelet",2,null,2,null,75,null,null,75,2]
[null,"Fancy",201,"chain",9,null,9,null,16.5,null,null,16.5,9]
[null,"Fancy",202," catch clip small",10,null,10,null,3,null,null,3,10]
[null,"Fancy","202a","catch clip big",12,null,12,null,5,null,null,5,12]
[null,"Fancy","202b","pasi",11,null,11,null,12,null,null,12,11]
[null,"Fancy","203A","kutties bangle",7,null,7,null,20,null,null,20,7]
[null,"Fancy","203B","kutties bangle",12,null,12,null,25,null,null,25,12]
[null,"Fancy","203C","kutties bangle",5,null,5,null,30,null,null,30,5]
[null,"Fancy",204,"kutties bangle",6,null,6,null,25,null,null,25,6]
[null,"Fancy","204A","kutties bangle",7,null,7,null,25,null,null,25,7]
[null,"Fancy","204B","kutties bangle",0,null,0,null,30,null,null,30,"3.5 set"]
[null,"Fancy","204C","kutties bangle",18,null,18,null,35,null,null,35,18]
[null,"Fancy",205,"lipstick",22,null,22,null,25,null,null,25,22]
[null,"Fancy",206,"sticker",6,null,6,null,8,null,null,8,6]
[null,"Fancy",207,"sticker",6,null,6,null,6,null,null,6,6]
[null,"Fancy","207a","ottiyanam",11,null,11,null,30,null,null,30,11]
[null,"Fancy",208,"sticker",12,null,12,null,6,null,null,6,12]
[null,"Fancy","208a","sticker",23,null,23,null,15,null,null,15,23]
[null,"Fancy","208b","sticker",15,null,15,null,8,null,null,8,15]
[null,"Fancy","208c","sticker",16,null,16,null,7,null,null,7,16]
[null,"Fancy","208d","sticker",44,null,44,null,5,null,null,5,44]
[null,"Fancy","208e","sticker",22,null,22,null,3,null,null,3,22]
[null,"Fancy",209,"sticker",9,null,9,null,6,null,null,6,9]
[null,"Fancy",210,"sticker",1,null,1,null,6,null,null,6,1]
[null,"Fancy",211,"sticker",10,null,10,null,6,null,null,6,10]
[null,"Fancy",572,"Bangle",7,null,7,null,60,null,null,60,7]
[null,"Fancy",1003,"block band",24,null,24,null,8,null,null,8,24]
[null,"Fancy","1004a","pattai clip sagar",13,null,13,null,30,null,null,30,13]
[null,"Fancy","1004b","pattai clip sagar",11,null,11,null,35,null,null,35,11]
[null,"Fancy","1004c","pattai clip sagar",16,null,16,null,12,null,null,12,16]
[null,"Fancy","1005 a","hair rose",6,null,6,null,20,null,null,20,6]
[null,"Fancy","1005 b","hair rose",3,null,3,null,25,null,null,25,3]
[null,"Fancy","1005 c","hair rose",11,null,11,null,35,null,null,35,11]
[null,"Fancy",1006,"pricelet",5,null,5,null,25,null,null,25,5]
[null,"Fancy",1008,"ottu kammal",6,null,6,null,15,null,null,15,6]
[null,"Fancy","1008a","nathi sudi",1,null,1,null,75,null,null,75,1]
[null,"Fancy",1009,"sticker",88,null,88,null,6,null,null,6,88]
[null,"Fancy","1009a","sticker",54,null,54,null,10,null,null,10,54]
[null,"Fancy","1009b","hand sticker",20,null,20,null,60,null,null,60,20]
[null,"Fancy","1009c"," hand sticker",43,null,43,null,35,null,null,35,43]
[null,"Fancy",1010,"hand sticker",24,null,24,null,90,null,null,90,24]
[null,"Fancy","1010a","singh cone",16,null,16,null,10,null,null,10,16]
[null,"Fancy","1010b","brown cone",40,null,40,null,10,null,null,10,40]
[null,"Fancy","1010c","block cone",12,null,12,null,10,null,null,10,12]
[null,null,null,null,0,null,0]
[null,null,null,null,0,null,0]
[null,null,null,null,0,null,0]
[null,null,null,null,0,null,0]
[null,null,null,null,0,null,0]
[null,null,null,null,0,null,0]
[null,null,null,null,0,null,0]
[null,null,null,null,0,null,0]
[null,null,null,null,0,null,0]
[null,null,null,null,{"$f":"SUMIF($K$7:$BC$7,$M$7,K265:BC265)","v":0},null,{"$f":"E265-F265","v":0}]
[null,null,null,null,0,null,0]
[null,null,null,null,0,null,0]
[null,null,null,null,0,null,0]
[null,null,null,null,0,null,0]
[null,null,null,null,0,null,0]
[null,null,null,null,0,null,0]
[null,null,null,null,0,null,0]
[null,null,null,null,0,null,0]
[null,null,null,null,0,null,0]
[null,null,null,null,0,null,0]
[null,null,null,null,0,null,0]
[null,null,null,null,0,null,0]
[null,null,null,null,0,null,0]
[null,null,null,null,0,null,0]
[null,null,null,null,0,null,0]
[null,null,null,null,0,null,0]
[null,null,null,null,0,null,0]
[null,null,null,null,0,null,0]
[null,null,null,null,0,null,0]
[null,null,null,null,0,null,0]
[null,null,null,null,0,null,0]
[null,null,null,null,0,null,0]
[null,null,null,null,0,null,0]
[null,null,null,null,0,null,0]
[null,null,null,null,0,null,0]
[null,null,null,null,0,null,0]
[null,null,null,null,0,null,0]
[null,null,null,null,0,null,0]
[null,null,null,null,0,null,0]
[null,null,null,null,0,null,0]
[null,null,null,null,0,null,0]
[null,null,null,null,0,null,0]
[null,null,null,null,0,null,0]
[null,null,null,null,0,null,0]
[null,null,null,null,0,null,0]
[null,null,null,null,0,null,0]
[null,null,null,null,0,null,0]
[null,null,null,null,0,null,0]
[null,null,null,null,0,null,0]
[null,null,null,null,0,null,0]
[null,null,null,null,0,null,0]
[null,null,null,null,0,null,0]
[null,null,null,null,0,null,0]
[null,null,null,null,0,null,0]
[null,null,null,null,0,null,0]
[null,null,null,null,0,null,0]
[null,null,null,null,0,null,0]
[null,null,null,null,0,null,0]
[null,null,null,null,0,null,0]
[null,null,null,null,0,null,0]
[null,null,null,null,0,null,0]
[null,null,null,null,0,null,0]
[null,null,null,null,0,null,0]
[null,null,null,null,0,null,0]
[null,null,null,null,0,null,0]
[null,null,null,null,0,null,0]
[null,null,null,null,0,null,0]
[null,null,null,null,0,null,0]
[null,null,null,null,0,null,0]
[null,null,null,null,0,null,0]
[null,null,null,null,0,null,0]
[null,null,null,null,0,null,0]
[null,null,null,null,0,null,0]
[null,null,null,null,{"$f":"SUMIF($K$7:$BC$7,$M$7,K329:BC329)","v":0},null,{"$f":"E329-F329","v":0}]
[null,null,null,null,0,null,0]
[null,null,null,null,0,null,0]
[null,null,null,null,0,null,0]
[null,null,null,null,0,null,0]
[null,null,null,null,0,null,0]
[null,null,null,null,0,null,0]
[null,null,null,null,0,null,0]
[null,null,null,null,0,null,0]
[null,null,null,null,0,null,0]
[null,null,null,null,0,null,0]
[null,null,null,null,0,null,0]
[null,null,null,null,0,null,0]
[null,null,null,null,0,null,0]
[null,null,null,null,0,null,0]
[null,null,null,null,0,null,0]
[null,null,null,null,0,null,0]
[null,null,null,null,0,null,0]
[null,null,null,null,0,null,0]
[null,null,null,null,0,null,0]
[null,null,null,null,0,null,0]
[null,null,null,null,0,null,0]
[null,null,null,null,0,null,0]
[null,null,null,null,0,null,0]
[null,null,null,null,0,null,0]
[null,null,null,null,0,null,0]
[null,null,null,null,0,null,0]
[null,null,null,null,0,null,0]
[null,null,null,null,0,null,0]
[null,null,null,null,0,null,0]
[null,null,null,null,0,null,0]
[null,null,null,null,0,null,0]
[null,null,null,null,0,null,0]
[null,null,null,null,0,null,0]
[null,null,null,null,0,null,0]
[null,null,null,null,0,null,0]
[null,null,null,null,0,null,0]
[null,null,null,null,0,null,0]
[null,null,null,null,0,null,0]
[null,null,null,null,0,null,0]
[null,null,null,null,0,null,0]
[null,null,null,null,0,null,0]
[null,null,null,null,0,null,0]
[null,null,null,null,0,null,0]
[null,null,null,null,0,null,0]
[null,null,null,null,0,null,0]
[null,null,null,null,0,null,0]
[null,null,null,null,0,null,0]
[null,null,null,null,0,null,0]
[null,null,null,null,0,null,0]
[null,null,null,null,0,null,0]
[null,null,null,null,0,null,0]
[null,null,null,null,0,null,0]
[null,null,null,null,0,null,0]
[null,null,null,null,0,null,0]
[null,null,null,null,0,null,0]
[null,null,null,null,0,null,0]
[null,null,null,null,0,null,0]
[null,null,null,null,0,null,0]
[null,null,null,null,0,null,0]
[null,null,null,null,0,null,0]
[null,null,null,null,0,null,0]
[null,null,null,null,0,null,0]
[null,null,null,null,0,null,0]
[null,null,null,null,{"$f":"SUMIF($K$7:$BC$7,$M$7,K393:BC393)","v":0},null,{"$f":"E393-F393","v":0}]
[null,null,null,null,0,null,0]
[null,null,null,null,0,null,0]
[null,null,null,null,0,null,0]
[null,null,null,null,0,null,0]
[null,null,null,null,0,null,0]
[null,null,null,null,0,null,0]
[null,null,null,null,0,null,0]
[null,null,null,null,0,null,0]
[null,null,null,null,0,null,0]
[null,null,null,null,0,null,0]
[null,null,null,null,0,null,0]
[null,null,null,null,0,null,0]
[null,null,null,null,0,null,0]
[null,null,null,null,0,null,0]
[null,null,null,null,0,null,0]
[null,null,null,null,0,null,0]
[null,"Cosmetics","BNC Fruit kit","BNC Fruit kit",0,null,0,450,779,null,450,779]
[null,"Cosmetics","BNC oxugen kit","BNC oxugen kit",0,null,0,475,875,null,475,875]
[null,"Cosmetics","BNC Silver kit","BNC Silver kit",0,null,0,500,775,null,500,775]
[null,"Cosmetics","BNC spa kit","BNC spa kit",0,null,0,800,1100,null,800,1100]
[null,"Cosmetics","BNC gold kit","BNC gold kit",0,null,0,750,1150,null,750,1150]
[null,"Cosmetics","BNC diamond kit","BNC diamond kit",0,null,0,850,950,null,850,950]
[null,"Cosmetics","BNC papaya kit","BNC papaya kit",0,null,0,450,875,null,450,875]
[null,"Cosmetics","BNC pearl kit","BNC pearl kit",0,null,0,500,775,null,500,775]
[null,"Cosmetics","Nicori bleech big","Nicori bleech big",0,null,0,450,527,null,450,527]
[null,"Cosmetics","Nicori babila mirror","Nicori babila mirror",0,null,0,35,null,null,35]
[null,"Cosmetics","Wella bleach","Wella bleach",0,null,0,740,null,null,740]
[null,"Cosmetics","Wella lewillson 6 %","Wella lewillson 6 %",0,null,0,100,195,null,100,195]
[null,"Cosmetics","Wella matrix 12 %","Wella matrix 12 %",0,null,0,345,345,null,345,345]
[null,"Cosmetics","Aloebira gel 1 kg","Aloebira gel 1 kg",0,null,0,368,460,null,368,460]
[null,"Cosmetics","Shanaz-clm","Shanaz-clm",0,null,0,450,525,null,450,525]
[null,"Cosmetics","Shanaz-scrub","Shanaz-scrub",0,null,0,450,525,null,450,525]
[null,"Cosmetics","Shanaz life","Shanaz life",0,null,0,475,null,null,475]
[null,"Cosmetics","Shanaz mask 1","Shanaz mask 1",0,null,0,560,null,null,560]
[null,"Cosmetics","Shanaz tey","Shanaz tey",0,null,0,560,null,null,560]
[null,"Cosmetics","Cermi pumic stone","Cermi pumic stone",0,null,0,25,null,null,25]
[null,"Cosmetics","N.W.Antitan","N.W.Antitan",0,null,0,140,180,null,140,180]
[null,"Cosmetics","Pentosoft kit","Pentosoft kit",0,null,0,190,1110,null,190,1110]
[null,"Cosmetics","Tritor pumic stone","Tritor pumic stone",0,null,0,60,null,null,60]
[null,"Cosmetics","Dolsi nail bron","Dolsi nail bron",0,null,0,40,null,null,40]
[null,"Cosmetics","Triton foot file","Triton foot file",0,null,0,80,null,null,80]
[null,"Cosmetics","Nail brush small","Nail brush small",0,null,0,15,null,null,15]
[null,"Cosmetics","Wat knife plastic","Wat knife plastic",0,null,0,35,null,null,35]
[null,"Cosmetics","Wat knife steel","Wat knife steel",0,null,0,15,null,null,15]
[null,"Cosmetics","Chira powder","Chira powder",0,null,0,45,null,null,45]
[null,"Cosmetics","Die 25081","Die 25081",0,null,0,110,200,null,110,200]
[null,"Cosmetics","small scissor","small scissor",0,null,0,27,null,null,27]
[null,"Cosmetics","Die bowl","Die bowl",0,null,0,12,null,null,12]
[null,"Cosmetics","Eye grromer","Eye grromer",0,null,0,15,null,null,15]
[null,"Cosmetics","Opal CLM","Opal CLM",0,null,0,140,186,null,140,186]
[null,"Cosmetics","Ergo C-CLM","Ergo C-CLM",0,null,0,120,165,null,120,165]
[null,"Cosmetics","Eye brush","Eye brush",0,null,0,45,null,null,45]
[null,"Cosmetics","Wet Tissu","Wet Tissu",0,null,0,35,null,null,35]
[null,"Cosmetics","Opal A/S","Opal A/S",0,null,0,37,47,null,37,47]
[null,"Cosmetics","Opal M/L","Opal M/L",0,null,0,37,47,null,37,47]
[null,"Cosmetics","Popal ST","Popal ST",0,null,0,37,47,null,37,47]
[null,"Cosmetics","Colshe Tissucloth","Colshe Tissucloth",0,null,0,80,0,null,80,0]
[null,"Cosmetics","Plastic mini","Plastic mini",0,null,0,7,0,null,7,0]
[null,"Cosmetics","plastic bowl","plastic bowl",0,null,0,12,0,null,12,0]
[null,"Cosmetics","Plastic bowl","Plastic bowl",0,null,0,40,0,null,40,0]
[null,"Cosmetics","S/cti","S/cti",0,null,0,40,0,null,40,0]
[null,"Cosmetics","Turkey Towel","Turkey Towel",0,null,0,65,0,null,65,0]
[null,"Cosmetics","Vaddi c/m","Vaddi c/m",0,null,0,24,40,null,24,40]
[null,"Cosmetics","Affitt Appran","Affitt Appran",{"$f":"SUMIF($K$7:$BC$7,$M$7,K457:BC457)","v":0},null,{"$f":"E457-F457","v":0},140,285,null,140,285]
[null,"Cosmetics","Children Appran","Children Appran",0,null,0,75,100,null,75,100]
[null,"Cosmetics","cohits Appran yellow","cohits Appran yellow",0,null,0,100,110,null,100,110]
[null,"Cosmetics","Salloon appron","Salloon appron",0,null,0,110,225,null,110,225]
[null,"Cosmetics","ME Foil","ME Foil",0,null,0,30,47,null,30,47]
[null,"Cosmetics","Zever Moisturizer ","Zever Moisturizer ",0,null,0,110,140,null,110,140]
[null,"Cosmetics","Block head / white head remover cream","Block head / white head remover cream",0,null,0,80,115,null,80,115]
[null,"Cosmetics","Block head remover","Block head remover",0,null,0,12,0,null,12,0]
[null,"Cosmetics","white head remover","white head remover",0,null,0,35,0,null,35,0]
[null,"Cosmetics","Kiwi eye pad","Kiwi eye pad",0,null,0,15,36,null,15,36]
[null,"Cosmetics","Gvarse","Gvarse",0,null,0,35,0,null,35,0]
[null,"Cosmetics","Aroma cvat strip","Aroma cvat strip",0,null,0,80,0,null,80,0]
[null,"Cosmetics","red lamp","red lamp",0,null,0,400,0,null,400,0]
[null,"Cosmetics","Brothers Biftee","Brothers Biftee",0,null,0,30,0,null,30,0]
[null,"Cosmetics","Tion nocomb kit","Tion nocomb kit",0,null,0,120,0,null,120,0]
[null,"Cosmetics","Dye brush with comb","Dye brush with comb",0,null,0,20,0,null,20,0]
[null,"Cosmetics","Tail comb with steel","Tail comb with steel",0,null,0,15,0,null,15,0]
[null,"Cosmetics","Comb a","Comb a",0,null,0,12,0,null,12,0]
[null,"Cosmetics","comb b","comb b",0,null,0,10,0,null,10,0]
[null,"Cosmetics","comb c","comb c",0,null,0,120,0,null,120,0]
[null,"Cosmetics","comb d","comb d",0,null,0,180,0,null,180,0]
[null,"Cosmetics","comb e","comb e",0,null,0,156,0,null,156,0]
[null,"Cosmetics","clarol hyfrequency","clarol hyfrequency",0,null,0,2100,0,null,2100,0]
[null,"Cosmetics","ultimate wax heeter","ultimate wax heeter",0,null,0,260,505,null,260,505]
[null,"Cosmetics","cresent vaporizer","cresent vaporizer",0,null,0,65,230,null,65,230]
[null,"Cosmetics","kolvin massager","kolvin massager",0,null,0,390,545,null,390,545]
[null,"Cosmetics","cone curling","cone curling",0,null,0,1200,0,null,1200,0]
[null,"Cosmetics","bravan stright","bravan stright",0,null,0,1270,1200,null,1270,1200]
[null,"Cosmetics","Royal Tissue","Royal Tissue",0,null,0,20,37,null,20,37]
[null,"Cosmetics","Garnier Dye","Garnier Dye",0,null,0,140,155,null,140,155]
[null,"Cosmetics","Lioreal dye","Lioreal dye",0,null,0,510,559,null,510,559]
[null,"Cosmetics","Begion dye","Begion dye",0,null,0,150,0,null,150,0]
[null,"Cosmetics","klaime dryer","klaime dryer",0,null,0,300,0,null,300,0]
[null,"Cosmetics","Vaadi m/p kit","Vaadi m/p kit",0,null,0,160,220,null,160,220]
[null,"Cosmetics","head band","head band",0,null,0,12,0,null,12,0]
[null,"Cosmetics","A/c Wax","A/c Wax",0,null,0,90,125,null,90,125]
[null,"Cosmetics","Wax","Wax",0,null,0,70,95,null,70,95]
[null,"Cosmetics","thrive massager","thrive massager",0,null,0,300,0,null,300,0]
[null,"Cosmetics","pan cake","pan cake",0,null,0,60,110,null,60,110]
[null,"Cosmetics","william wat strip","william wat strip",0,null,0,60,160,null,60,160]
[null,"Cosmetics","william  s ","william  s ",0,null,0,30,160,null,30,160]
[null,"Cosmetics","triton concrito","triton concrito",0,null,0,80,0,null,80,0]
[null,"Cosmetics","hairline nailfiller","hairline nailfiller",0,null,0,25,0,null,25,0]
[null,"Cosmetics","orange stick","orange stick",0,null,0,20,0,null,20,0]
[null,"Cosmetics","nail filler","nail filler",0,null,0,17.5,0,null,17.5,0]
[null,"Cosmetics","vega pack brush","vega pack brush",0,null,0,65,0,null,65,0]
[null,"Cosmetics","lip bleach bron ","lip bleach bron ",0,null,0,105,0,null,105,0]
[null,"Cosmetics","S six","S six",0,null,0,180,0,null,180,0]
[null,"Cosmetics","Scarlet dye brush","Scarlet dye brush",0,null,0,25,0,null,25,0]
[null,"Cosmetics","Anikta eye groomer","Anikta eye groomer",0,null,0,40,60,null,40,60]
[null,"Cosmetics","Hair Bikin","Hair Bikin",0,null,0,95,0,null,95,0]
[null,"Cosmetics","No name","No name",0,null,0,85,0,null,85,0]
[null,"Cosmetics","No name","No name",0,null,0,85,0,null,85,0]
[null,"Cosmetics","Pedal Brush","Pedal Brush",0,null,0,140,0,null,140,0]
[null,"Cosmetics","Rolling tiot S","Rolling tiot S",0,null,0,115,0,null,115,0]
[null,"Cosmetics","No name","No name",0,null,0,175,0,null,175,0]
[null,"Cosmetics","Wooden Rotz Comps","Wooden Rotz Comps",0,null,0,255,0,null,255,0]
[null,"Cosmetics","session clip","session clip",0,null,0,7,0,null,7,0]
[null,"Cosmetics","butterfly clip","butterfly clip",0,null,0,9,0,null,9,0]
[null,"Cosmetics","hair spray","hair spray",0,null,0,110,130,null,110,130]
[null,"Cosmetics","Harnel ","Harnel ",0,null,0,110,180,null,110,180]
[null,"Cosmetics","Pakeezah henna","Pakeezah henna",0,null,0,170,199,null,170,199]
[null,"Cosmetics","ADS penchil","ADS penchil",0,null,0,7,0,null,7,0]
[null,"Cosmetics","Rose water","Rose water",0,null,0,8,24,null,8,24]
[null,"Cosmetics","Touch Pack","Touch Pack",{"$f":"SUMIF($K$7:$BC$7,$M$7,K521:BC521)","v":0},null,{"$f":"E521-F521","v":0},17.5,35,null,17.5,35]
[null,"Cosmetics","Hansmanik Hair oil","Hansmanik Hair oil",0,null,0,50,75,null,50,75]
[null,"Cosmetics","Singh Cone","Singh Cone",0,null,0,5,10,null,5,10]
[null,"Cosmetics","Colour cone","Colour cone",0,null,0,5.833333333333333,10,null,5.833333333333333,10]
[null,"Cosmetics","Vov nail Remover","Vov nail Remover",0,null,0,55,75,null,55,75]
[null,"Cosmetics","mini lipstic 1 cad","mini lipstic 1 cad",0,null,0,4.7222222222222223,0,null,4.7222222222222223,0]
[null,"Cosmetics","yaris lip gloss 1 cad","yaris lip gloss 1 cad",0,null,0,10,0,null,10,0]
[null,"Cosmetics","Lip hlvery 1 cad","Lip hlvery 1 cad",0,null,0,8.4375,0,null,8.4375,0]
[null,"Cosmetics","Thermo pack","Thermo pack",0,null,0,124,155,null,124,155]
[null,"Cosmetics","lotus gel","lotus gel",0,null,0,225,245,null,225,245]
[null,"Cosmetics","berry scrub","berry scrub",0,null,0,115,125,null,115,125]
[null,"Cosmetics","Jojaba face wash","Jojaba face wash",0,null,0,115,125,null,115,125]
[null,"Cosmetics","Aroma R.K. Diomond Kit","Aroma R.K. Diomond Kit",0,null,0,97,114,null,97,114]
[null,"Cosmetics","Aroma R.K. Gold Kit","Aroma R.K. Gold Kit",0,null,0,72,84,null,72,84]
[null,"Cosmetics","Aroma R.K. Pearl kit","Aroma R.K. Pearl kit",0,null,0,65,75,null,65,75]
[null,"Cosmetics","Aroma R.K. Whiten kit","Aroma R.K. Whiten kit",0,null,0,81.5,96,null,81.5,96]
[null,"Cosmetics","Marlin Eye liner","Marlin Eye liner",0,null,0,25,50,null,25,50]
[null,"Cosmetics","Marlin maskara","Marlin maskara",0,null,0,25,50,null,25,50]
[null,"Cosmetics","Stars translucent powder","Stars translucent powder",0,null,0,190,225,null,190,225]
[null,"Cosmetics","Stars concealer","Stars concealer",0,null,0,140,175,null,140,175]
[null,"Cosmetics","max touch eye shadow","max touch eye shadow",0,null,0,40,0,null,40,0]
[null,"Cosmetics","moubeline Kajal","moubeline Kajal",0,null,0,160,175,null,160,175]
[null,"Cosmetics","mabuline maskara","mabuline maskara",0,null,0,330,350,null,330,350]
[null,"Cosmetics","aroma majic mint cleanser","aroma majic mint cleanser",0,null,0,110,135,null,110,135]
[null,"Cosmetics","aroma magic oxy pack","aroma magic oxy pack",0,null,0,180,215,null,180,215]
[null,"Cosmetics","aroma skin lightning ","aroma skin lightning ",0,null,0,430,520,null,430,520]
[null,"Cosmetics","aroma almond moisturizer","aroma almond moisturizer",0,null,0,143.5,175,null,143.5,175]
[null,"Cosmetics","aromamagic tonner","aromamagic tonner",0,null,0,82,100,null,82,100]
[null,"Cosmetics","aroma magic fairy lotion","aroma magic fairy lotion",0,null,0,115,140,null,115,140]
[null,"Cosmetics","aroma mineral scrub","aroma mineral scrub",0,null,0,65,80,null,65,80]
[null,"Cosmetics","oumeidie eyeshadow  ","oumeidie eyeshadow  ",0,null,0,80,0,null,80,0]
[null,"Cosmetics","facial gel rose","facial gel rose",0,null,0,85,150,null,85,150]
[null,"Cosmetics","facial gel fruit","facial gel fruit",0,null,0,85,150,null,85,150]
[null,"Cosmetics","facial gel lemon","facial gel lemon",0,null,0,85,150,null,85,150]
[null,"Cosmetics","shine glo facial kit","shine glo facial kit",0,null,0,200,425,null,200,425]
[null,"Cosmetics","oxyglow bleach gold","oxyglow bleach gold",0,null,0,180,225,null,180,225]
[null,"Cosmetics","oxyglo pearl","oxyglo pearl",0,null,0,180,450,null,180,450]
[null,"Cosmetics","oxyglo dimond.","oxyglo dimond.",0,null,0,216,270,null,216,270]
[null,"Cosmetics","zevers fruit kit ","zevers fruit kit ",0,null,0,140,180,null,140,180]
[null,"Cosmetics","zever body lotion","zever body lotion",0,null,0,45,60,null,45,60]
[null,"Cosmetics","rain cucumber gel","rain cucumber gel",0,null,0,85,150,null,85,150]
[null,"Cosmetics","rain silver gel","rain silver gel",0,null,0,150,400,null,150,400]
[null,"Cosmetics","rain gold gel","rain gold gel",0,null,0,200,600,null,200,600]
[null,"Cosmetics","rain orange gel","rain orange gel",0,null,0,85,150,null,85,150]
[null,"Cosmetics","cotton rolls ","cotton rolls ",0,null,0,40,61.625,null,40,61.625]
[null,"Cosmetics","alovera tissue cloth","alovera tissue cloth",0,null,0,60,135,null,60,135]
[null,"Cosmetics","ergo  massage cream","ergo  massage cream",0,null,0,55,78,null,55,78]
[null,"Cosmetics","saffron massage cream","saffron massage cream",0,null,0,65,95,null,65,95]
[null,"Cosmetics","alomond yarley scrub","alomond yarley scrub",0,null,0,85,125,null,85,125]
[null,"Cosmetics","gold facial scrub","gold facial scrub",0,null,0,95,150,null,95,150]
[null,"Cosmetics","spirulina","spirulina",0,null,0,125,0,null,125,0]
[null,"Cosmetics","lovandor oil","lovandor oil",0,null,0,150,180,null,150,180]
[null,"Cosmetics","feelgood diomond  facial kit","feelgood diomond  facial kit",0,null,0,0,950,null,0,950]
[null,"Cosmetics","feelgood orange facial kit","feelgood orange facial kit",0,null,0,0,300,null,0,300]
[null,"Cosmetics","feelgood pearl facial kit","feelgood pearl facial kit",0,null,0,0,450,null,0,450]
[null,"Cosmetics","feelgood alovera kit ","feelgood alovera kit ",0,null,0,0,300,null,0,300]
[null,"Cosmetics","feelgood kit ","feelgood kit ",0,null,0,339,0,null,339,0]
[null,"Cosmetics","dandruff shampoo","dandruff shampoo",0,null,0,70,0,null,70,0]
[null,"Cosmetics","facia kit","facia kit",0,null,0,154,0,null,154,0]
[null,"Cosmetics","henna shampoo","henna shampoo",0,null,0,70,0,null,70,0]
[null,"Cosmetics","thread box ","thread box ",0,null,0,200,0,null,200,0]
[null,"Cosmetics","naturesway dandruff kit","naturesway dandruff kit",0,null,0,750,0,null,750,0]
[null,"Cosmetics","henna pakeezah","henna pakeezah",0,null,0,90,0,null,90,0]
[null,"Cosmetics","lakme foundation","lakme foundation",0,null,0,105,0,null,105,0]
[null,"Cosmetics","roll combs","roll combs",{"$f":"SUMIF($K$7:$BC$7,$M$7,K585:BC585)","v":0},null,{"$f":"E585-F585","v":0},50,0,null,50,0]
[null,"Cosmetics","under eye gel","under eye gel",0,null,0,35,0,null,35,0]
[null,"Cosmetics","cucumber cream","cucumber cream",0,null,0,90,0,null,90,0]
[null,"Cosmetics","wine face wash","wine face wash",0,null,0,60,0,null,60,0]
[null,"Cosmetics","u pin","u pin",0,null,0,96,0,null,96,0]
[null,"Cosmetics","u pin","u pin",0,null,0,40,0,null,40,0]
[null,"Cosmetics","watson oil","watson oil",0,null,0,63,0,null,63,0]
[null,"Cosmetics","natures way kit  gold","natures way kit  gold",0,null,0,850,0,null,850,0]
[null,"Cosmetics","katha powder","katha powder",0,null,0,55,0,null,55,0]
[null,"Cosmetics","Garnier Dye","Garnier Dye",0,null,0,130,0,null,130,0]
[null,"Cosmetics","Garnier Dye","Garnier Dye",0,null,0,145,0,null,145,0]
[null,"Cosmetics","cutical nile","cutical nile",0,null,0,89,0,null,89,0]
[null,"Cosmetics","eyeconic ","eyeconic ",0,null,0,199,0,null,199,0]
[null,"Cosmetics","natures lacto tan clear","natures lacto tan clear",0,null,0,115,145,null,115,145]
[null,"Cosmetics","vi-john hair spray","vi-john hair spray",0,null,0,90,100,null,90,100]
[null,"Cosmetics","vaadi under eye cream","vaadi under eye cream",0,null,0,35,48,null,35,48]
[null,"Cosmetics","disposablr plastic glouse","disposablr plastic glouse",0,null,0,40,0,null,40,0]
[null,"Cosmetics","glouse block","glouse block",0,null,0,60,0,null,60,0]
[null,"Cosmetics","block henna","block henna",0,null,0,110,200,null,110,200]
[null,"Cosmetics","eyeconic ","eyeconic ",0,null,0,180,199,null,180,199]
[null,"Cosmetics","face touch face pack","face touch face pack",0,null,0,35,35,null,35,35]
[null,"Cosmetics","glycerin","glycerin",0,null,0,35,44,null,35,44]
[null,"Cosmetics","blockberry face wash","blockberry face wash",0,null,0,70,90,null,70,90]
[null,"Cosmetics","neem - tulsi face wash","neem - tulsi face wash",0,null,0,70,90,null,70,90]
[null,"Cosmetics","peach face wash","peach face wash",0,null,0,70,90,null,70,90]
[null,"Cosmetics","eye shadow brush","eye shadow brush",0,null,0,40,0,null,40,0]
[null,"Cosmetics","opal alovera facial gel","opal alovera facial gel",0,null,0,0,60,null,0,60]
[null,"Cosmetics","KBH - astringent lotion","KBH - astringent lotion",0,null,0,35,75,null,35,75]
[null,"Cosmetics","KBH - skin tonner","KBH - skin tonner",0,null,0,35,75,null,35,75]
[null,"Cosmetics","KBH-peach moisturier","KBH-peach moisturier",0,null,0,35,75,null,35,75]
[null,"Cosmetics","VLCC gold radiance facial kit","VLCC gold radiance facial kit",0,null,0,930,1099,null,930,1099]
[null,"Cosmetics","Face & body glitters","Face & body glitters",0,null,0,30,0,null,30,0]
[null,"Cosmetics","klara cucumber","klara cucumber",0,null,0,90,120,null,90,120]
[null,"*",0,null,0,null,0]
[null,"*",0,null,0,null,0]
[null,"*",0,null,0,null,0]
[null,"*",0,null,0,null,0]
[null,"*",0,null,0,null,0]
[null,"*",0,null,0,null,0]
[null,"*",0,null,0,null,0]
[null,"*",0,null,0,null,0]
[null,"*",0,null,0,null,0]
[null,"*",0,null,0,null,0]
[null,"*",0,null,0,null,0]
[null,"*",0,null,0,null,0]
[null,"*",0,null,0,null,0]
[null,"*",0,null,0,null,0]
[null,"*",0,null,0,null,0]
[null,"*",0,null,0,null,0]
[null,"*",0,null,0,null,0]
[null,"*",0,null,0,null,0]
[null,"*",0,null,0,null,0]
[null,"*",0,null,0,null,0]
[null,"*",0,null,0,null,0]
[null,"*",0,null,0,null,0]
[null,"*",0,null,0,null,0]
[null,"*",0,null,0,null,0]
[null,"*",0,null,0,null,0]
[null,"*",0,null,0,null,0]
[null,"*",0,null,0,null,0]
[null,"*",0,null,0,null,0]
[null,"*",0,null,0,null,0]
[null,"*",0,null,0,null,0]
[null,"*",0,null,0,null,0]
[null,"*",0,null,{"$f":"SUMIF($K$7:$BC$7,$M$7,K649:BC649)","v":0},null,{"$f":"E649-F649","v":0}]
[null,"*",0,null,0,null,0]
[null,"*",0,null,0,null,0]
[null,"*",0,null,0,null,0]
[null,"*",0,null,0,null,0]
[null,"*",0,null,0,null,0]
[null,"*",0,null,0,null,0]
[null,"*",0,null,0,null,0]
[null,"*",0,null,0,null,0]
[null,"*",0,null,0,null,0]
[null,"*",0,null,0,null,0]
[null,"*",0,null,0,null,0]
[null,"*",0,null,0,null,0]
[null,"*",0,null,0,null,0]
[null,"*",0,null,0,null,0]
[null,"*",0,null,0,null,0]
[null,"*",0,null,0,null,0]
[null,"*",0,null,0,null,0]
[null,"*",0,null,0,null,0]
[null,"*",0,null,0,null,0]
[null,"*",0,null,0,null,0]
[null,"*",0,null,0,null,0]
[null,"*",0,null,0,null,0]
[null,"*",0,null,0,null,0]
[null,"*",0,null,0,null,0]
[null,"*",0,null,0,null,0]
[null,"*",0,null,0,null,0]
[null,"*",0,null,0,null,0]
[null,"*",0,null,0,null,0]
[null,"*",0,null,0,null,0]
[null,"*",0,null,0,null,0]
[null,"*",0,null,0,null,0]
[null,"*",0,null,0,null,0]
[null,"*",0,null,0,null,0]
[null,"*",0,null,0,null,0]
[null,"*",0,null,0,null,0]
[null,"*",0,null,0,null,0]
[null,"*",0,null,0,null,0]
[null,"*",0,null,0,null,0]
[null,"*",0,null,0,null,0]
[null,"*",0,null,0,null,0]
[null,"*",0,null,0,null,0]
[null,"*",0,null,0,null,0]
[null,"*",0,null,0,null,0]
[null,"*",0,null,0,null,0]
[null,"*",0,null,0,null,0]
[null,"*",0,null,0,null,0]
[null,"*",0,null,0,null,0]
[null,"*",0,null,0,null,0]
[null,"*",0,null,0,null,0]
[null,"*",0,null,0,null,0]
[null,"*",0,null,0,null,0]
[null,"*",0,null,0,null,0]
[null,"*",0,null,0,null,0]
[null,"*",0,null,0,null,0]
[null,"*",0,null,0,null,0]
[null,"*",0,null,0,null,0]
[null,"*",0,null,0,null,0]
[null,"*",0,null,0,null,0]
[null,"*",0,null,0,null,0]
[null,"*",0,null,0,null,0]
[null,"*",0,null,0,null,0]
[null,"*",0,null,0,null,0]
[null,"*",0,null,0,null,0]
[null,"*",0,null,{"$f":"SUMIF($K$7:$BC$7,$M$7,K713:BC713)","v":0},null,{"$f":"E713-F713","v":0}]
[null,"*",0,null,0,null,0]
[null,"*",0,null,0,null,0]
[null,"*",0,null,0,null,0]
[null,"*",0,null,0,null,0]
[null,"*",0,null,0,null,0]
[null,"*",0,null,0,null,0]
[null,"*",0,null,0,null,0]
[null,"*",0,null,0,null,0]
[null,"*",0,null,0,null,0]
[null,"*",0,null,0,null,0]
[null,"*",0,null,0,null,0]
[null,"*",0,null,0,null,0]
[null,"*",0,null,0,null,0]
[null,"*",0,null,0,null,0]
[null,"*",0,null,0,null,0]
[null,"*",0,null,0,null,0]
[null,"*",0,null,0,null,0]
[null,"*",0,null,0,null,0]
[null,"*",0,null,0,null,0]
[null,"*",0,null,0,null,0]
[null,"*",0,null,0,null,0]
[null,"*",0,null,0,null,0]
[null,"*",0,null,0,null,0]
[null,"*",0,null,0,null,0]
[null,"*",0,null,0,null,0]
[null,"*",0,null,0,null,0]
[null,"*",0,null,0,null,0]
[null,"*",0,null,0,null,0]
[null,"*",0,null,0,null,0]
[null,"*",0,null,0,null,0]
[null,"*",0,null,0,null,0]
[null,"*",0,null,0,null,0]
[null,"*",0,null,0,null,0]
[null,"*",0,null,0,null,0]
[null,"*",0,null,0,null,0]
[null,"*",0,null,0,null,0]
[null,"*","choose","*",0,null,0,"*","*",null,"*","*"]

{"sheet":"service input","index":2,"n_rows":141,"n_cols":7,"rows_kept":141,"cut":false,"hidden":false,"merged":[[5,3,5,4]]}
[]
[]
[]
[]
[]
[null,null,null,"SERVICE",null,"2013-10-01"]
[null,null,null,"Category","Item name","MRP","MRP"]
[]
[null,"choose_service",null,"choose_service","**","*"]
[null,"Threading",null,"Threading","eyebrow",30]
[null,"Waxing",null,null,"upperlips, chin,forehead",20]
[null,"mehandi",null,null,"full face",100]
[null,"bleach"]
[null,"facial"]
[null,"Aroma_Facial",null,"Waxing","half arms",100]
[null,"Manicure",null,null,"full arms",200]
[null,"Pedicure",null,null,"half legs",100]
[null,"nail_filling_and_paint",null,null,"full legs",200]
[null,"hair_cut"]
[null,"hair_styling_Ironing_tongs",null,"Manicure","herbal",150]
[null,"Hair_wash_shampoo",null,null,"spa",250]
[null,"Hair_colouring "]
[null,"permanent_hair_straightning "]
[null,"hair_curling",null,"pedicure","herbal",200]
[null,"hair_spa",null,null,"spa",300]
[null,"Anti_dandruff "]
[null,"Anti_dandruff_with_serum"]
[null,"Anti_hair_fall",null,"nail_filling_and_paint","nail filling & paint",70]
[null,"Makeup"]
[null,"Others_Bride_Relatives_Friends"]
[null,"Bridal_packages"]
[null,null,null,"hair_cut","Baby cut",80]
[null,null,null,null,"pop cut",70]
[null,null,null,null,"stright cut",60]
[null,null,null,null,"u cut",80]
[null,null,null,null,"v cut",100]
[null,null,null,null,"step cut",200]
[null,null,null,null,"feather cut",250]
[null,null,null,null,"musroom cut",70]
[]
[null,null,null,"hair_styling_Ironing_tongs","temporary ironing ","200 to 700"]
[]
[]
[null,null,null,"Hair_wash_shampoo","Oil massage & hair wash",200]
[null,null,null,null,"oil massage  with root pack",300]
[null,null,null,null,"oil massage & serum with root pack",400]
[]
[]
[null,null,null,"Hair_colouring ","dye","200 to hair length"]
[null,null,null,null,"high light","300 to 400"]
[null,null,null,null,"full colour","300 to 700"]
[null,null,null,null,"henna","200 to hair length"]
[]
[]
[null,null,null,"permanent_hair_straightning ","permanent hair straightning ","2500 to 5000"]
[]
[null,null,null,"hair_curling","hair curling.","2000 to 4000"]
[]
[]
[null,null,null,"hair_spa","hair_spa","500 to 800"]
[]
[]
[null,null,null,"Anti_dandruff ","Anti dandruff ","250 to 500 (per sitting)"]
[]
[]
[null,null,null,"Anti_dandruff_with_serum","Anti dandruff with serum",600]
[]
[]
[null,null,null,"Anti_hair_fall","Anti hair fall","250 to 500"]
[]
[]
[]
[null,null,null,"mehandi","Arabic design","200 to designing charge"]
[null,null,null,null,"traditional design","400 to designing charge"]
[null,null,null,null,"bride mehandi",1500]
[null,null,null,null,"colour mehandi","300 to designing charge"]
[]
[]
[null,null,null,"bleach","fruit bleach",150]
[null,null,null,null,"gold bleach",200]
[null,null,null,null,"diamond bleach",250]
[null,null,null,null,"pearl bleach",250]
[null,null,null,null,"niconi bleach",300]
[null,null,null,null,"hand bleach","300 to 500"]
[null,null,null,null,"leg bleach","300 to 500"]
[]
[]
[null,null,null,"facial","fruit facial","250 to700"]
[null,null,null,null,"herbal facial",300]
[null,null,null,null,"diamond facial","300 to 900"]
[null,null,null,null,"pearl facial","350 to 900"]
[null,null,null,null,"silver facial","500 to 850"]
[null,null,null,null,"Gold (Fair & Glow) Facial","600 to 1500"]
[null,null,null,null,"Skin whitning facial",1200]
[null,null,null,null,"Aloe sensitive skin facial",650]
[null,null,null,null,"Dark Spot Treatment",900]
[null,null,null,null,"Spa Revital facial",1200]
[null,null,null,null,"Pimple Treatment","250 to500"]
[null,null,null,null,"Pigmentation treatment","250 to500"]
[null,null,null,null,"Skin tightning facial",400]
[null,null,null,null,"Clean up",100]
[null,null,null,null,"Eye facial",200]
[null,null,null,null,"Shanaz",800]
[]
[null,null,null,"Aroma_Facial","Pimple treatment",450]
[null,null,null,null,"Pimple treatment with serum",650]
[null,null,null,null,"Pigmentation treatment",700]
[null,null,null,null,"Pigmentation treatment used with serum",800]
[null,null,null,null,"Skin lightning facial with serum",500]
[null,null,null,null,"Normal facial",350]
[]
[]
[null,null,null,"Makeup","Trial make-up",500]
[null,null,null,null,"simple makeup",700]
[null,null,null,null,"party makeup",1400]
[null,null,null,null,"Bridal","3500 to 6000"]
[null,null,null,null,"Reception","2500 to5000"]
[]
[]
[null,null,null,"Others_Bride_Relatives_Friends","Sari Normal",300]
[null,null,null,null,"Hair do",200]
[]
[]
[null,null,null,"Bridal_packages","Full face threading",10500]
[null,null,null,null,"full body bleach",{"$f":"F124","v":10500}]
[null,null,null,null,"manicure",{"$f":"F125","v":10500}]
[null,null,null,null,"pedicure",10500]
[null,null,null,null,"hair cut",10500]
[null,null,null,null,"hair spa & b organic facials",10500]
[]
[]
[null,null,null,"Others"]
[]
[]
[]
[]
[]
[]
[]
[]
[null,null,null,null,0,"*"]

{"sheet":"service revenue","index":3,"n_rows":136,"n_cols":13,"rows_kept":136,"cut":false,"hidden":false,"merged":[[4,0,6,0],[4,1,5,1],[4,2,5,2],[2,10,6,14],[8,10,8,11]]}
[]
[]
[null,null,null,null,null,null,null,null,null,null,"In cell D8, compare the value of C8 with 'sheet master E12:E100,value of E5 with 'sheet master B12:B100 , then multiply and sum 'sheet master( F12:F100, G12:G100)"]
[]
["Total","Service","Category",null,"2013-10-01",null,null,"2013-11-01"]
[null,null,null,"Actual ₹","Plan ₹","Qty"]
[]
[1,"Threading","eyebrow",{"$f":"SUM(INDEX((Master!E12:E100='service revenue'!C8)*(Master!B12:B100-DAY(Master!B12:B100)='service revenue'!E5-DAY('service revenue'!E5))*Master!F12:F100*Master!G12:G100,))","v":{"$error":"#VALUE!"}},{"$f":"(INDEX('service input'!$F$10:$N$141,MATCH($C8,'service input'!$E$10:$E$140,0),MATCH(E$5-DAY(E$5)+1,referencemonth,1)+MATCH(\"MRP\",'service input'!$F$7:$N$7,0)-1))*F8","v":60},{"$f":"SUMIFS(Master!$G$12:$G$4000,Master!$E$12:$E$4000,C8,Master!$B$12:$B$4000,\">=\"&E$5,Master!$B$12:$B$4000,\"<=\"&EOMONTH(E$5,0))","v":2}]
[0,null,"upperlips, chin,forehead",null,{"$f":"(INDEX('service input'!$F$10:$N$141,MATCH($C9,'service input'!$E$10:$E$140,0),MATCH(E$5-DAY(E$5)+1,referencemonth,1)+MATCH(\"MRP\",'service input'!$F$7:$N$7,0)-1))*F9","v":0},{"$f":"SUMIFS(Master!$G$12:$G$4000,Master!$E$12:$E$4000,C9,Master!$B$12:$B$4000,\">=\"&E$5,Master!$B$12:$B$4000,\"<=\"&EOMONTH(E$5,0))","v":0},null,null,null,null,"at d8  required value",null,60]
[0,null,"full face",null,{"$f":"(INDEX('service input'!$F$10:$N$141,MATCH($C10,'service input'!$E$10:$E$140,0),MATCH(E$5-DAY(E$5)+1,referencemonth,1)+MATCH(\"MRP\",'service input'!$F$7:$N$7,0)-1))*F10","v":0},{"$f":"SUMIFS(Master!$G$12:$G$4000,Master!$E$12:$E$4000,C10,Master!$B$12:$B$4000,\">=\"&E$5,Master!$B$12:$B$4000,\"<=\"&EOMONTH(E$5,0))","v":0}]
[0,null,0,null,{"$f":"(INDEX('service input'!$F$10:$N$141,MATCH($C11,'service input'!$E$10:$E$140,0),MATCH(E$5-DAY(E$5)+1,referencemonth,1)+MATCH(\"MRP\",'service input'!$F$7:$N$7,0)-1))*F11","v":{"$error":"#N/A"}},{"$f":"SUMIFS(Master!$G$12:$G$4000,Master!$E$12:$E$4000,C11,Master!$B$12:$B$4000,\">=\"&E$5,Master!$B$12:$B$4000,\"<=\"&EOMONTH(E$5,0))","v":0}]
[0,null,0,null,{"$f":"(INDEX('service input'!$F$10:$N$141,MATCH($C12,'service input'!$E$10:$E$140,0),MATCH(E$5-DAY(E$5)+1,referencemonth,1)+MATCH(\"MRP\",'service input'!$F$7:$N$7,0)-1))*F12","v":{"$error":"#N/A"}},{"$f":"SUMIFS(Master!$G$12:$G$4000,Master!$E$12:$E$4000,C12,Master!$B$12:$B$4000,\">=\"&E$5,Master!$B$12:$B$4000,\"<=\"&EOMONTH(E$5,0))","v":0}]
[0,"Waxing","half arms",null,{"$f":"(INDEX('service input'!$F$10:$N$141,MATCH($C13,'service input'!$E$10:$E$140,0),MATCH(E$5-DAY(E$5)+1,referencemonth,1)+MATCH(\"MRP\",'service input'!$F$7:$N$7,0)-1))*F13","v":0},{"$f":"SUMIFS(Master!$G$12:$G$4000,Master!$E$12:$E$4000,C13,Master!$B$12:$B$4000,\">=\"&E$5,Master!$B$12:$B$4000,\"<=\"&EOMONTH(E$5,0))","v":0}]
[0,null,"full arms",null,{"$f":"(INDEX('service input'!$F$10:$N$141,MATCH($C14,'service input'!$E$10:$E$140,0),MATCH(E$5-DAY(E$5)+1,referencemonth,1)+MATCH(\"MRP\",'service input'!$F$7:$N$7,0)-1))*F14","v":0},{"$f":"SUMIFS(Master!$G$12:$G$4000,Master!$E$12:$E$4000,C14,Master!$B$12:$B$4000,\">=\"&E$5,Master!$B$12:$B$4000,\"<=\"&EOMONTH(E$5,0))","v":0}]
[0,null,"half legs",null,{"$f":"(INDEX('service input'!$F$10:$N$141,MATCH($C15,'service input'!$E$10:$E$140,0),MATCH(E$5-DAY(E$5)+1,referencemonth,1)+MATCH(\"MRP\",'service input'!$F$7:$N$7,0)-1))*F15","v":0},{"$f":"SUMIFS(Master!$G$12:$G$4000,Master!$E$12:$E$4000,C15,Master!$B$12:$B$4000,\">=\"&E$5,Master!$B$12:$B$4000,\"<=\"&EOMONTH(E$5,0))","v":0}]
[0,null,"full legs",null,{"$f":"(INDEX('service input'!$F$10:$N$141,MATCH($C16,'service input'!$E$10:$E$140,0),MATCH(E$5-DAY(E$5)+1,referencemonth,1)+MATCH(\"MRP\",'service input'!$F$7:$N$7,0)-1))*F16","v":0},{"$f":"SUMIFS(Master!$G$12:$G$4000,Master!$E$12:$E$4000,C16,Master!$B$12:$B$4000,\">=\"&E$5,Master!$B$12:$B$4000,\"<=\"&EOMONTH(E$5,0))","v":0}]
[0,null,0,null,{"$f":"(INDEX('service input'!$F$10:$N$141,MATCH($C17,'service input'!$E$10:$E$140,0),MATCH(E$5-DAY(E$5)+1,referencemonth,1)+MATCH(\"MRP\",'service input'!$F$7:$N$7,0)-1))*F17","v":{"$error":"#N/A"}},{"$f":"SUMIFS(Master!$G$12:$G$4000,Master!$E$12:$E$4000,C17,Master!$B$12:$B$4000,\">=\"&E$5,Master!$B$12:$B$4000,\"<=\"&EOMONTH(E$5,0))","v":0}]
[0,"Manicure","herbal",null,{"$f":"(INDEX('service input'!$F$10:$N$141,MATCH($C18,'service input'!$E$10:$E$140,0),MATCH(E$5-DAY(E$5)+1,referencemonth,1)+MATCH(\"MRP\",'service input'!$F$7:$N$7,0)-1))*F18","v":0},{"$f":"SUMIFS(Master!$G$12:$G$4000,Master!$E$12:$E$4000,C18,Master!$B$12:$B$4000,\">=\"&E$5,Master!$B$12:$B$4000,\"<=\"&EOMONTH(E$5,0))","v":0}]
[0,null,"spa",null,{"$f":"(INDEX('service input'!$F$10:$N$141,MATCH($C19,'service input'!$E$10:$E$140,0),MATCH(E$5-DAY(E$5)+1,referencemonth,1)+MATCH(\"MRP\",'service input'!$F$7:$N$7,0)-1))*F19","v":0},{"$f":"SUMIFS(Master!$G$12:$G$4000,Master!$E$12:$E$4000,C19,Master!$B$12:$B$4000,\">=\"&E$5,Master!$B$12:$B$4000,\"<=\"&EOMONTH(E$5,0))","v":0}]
[0,null,0,null,{"$f":"(INDEX('service input'!$F$10:$N$141,MATCH($C20,'service input'!$E$10:$E$140,0),MATCH(E$5-DAY(E$5)+1,referencemonth,1)+MATCH(\"MRP\",'service input'!$F$7:$N$7,0)-1))*F20","v":{"$error":"#N/A"}},{"$f":"SUMIFS(Master!$G$12:$G$4000,Master!$E$12:$E$4000,C20,Master!$B$12:$B$4000,\">=\"&E$5,Master!$B$12:$B$4000,\"<=\"&EOMONTH(E$5,0))","v":0}]
[0,null,0,null,{"$f":"(INDEX('service input'!$F$10:$N$141,MATCH($C21,'service input'!$E$10:$E$140,0),MATCH(E$5-DAY(E$5)+1,referencemonth,1)+MATCH(\"MRP\",'service input'!$F$7:$N$7,0)-1))*F21","v":{"$error":"#N/A"}},{"$f":"SUMIFS(Master!$G$12:$G$4000,Master!$E$12:$E$4000,C21,Master!$B$12:$B$4000,\">=\"&E$5,Master!$B$12:$B$4000,\"<=\"&EOMONTH(E$5,0))","v":0}]
[0,"pedicure","herbal",null,{"$f":"(INDEX('service input'!$F$10:$N$141,MATCH($C22,'service input'!$E$10:$E$140,0),MATCH(E$5-DAY(E$5)+1,referencemonth,1)+MATCH(\"MRP\",'service input'!$F$7:$N$7,0)-1))*F22","v":0},{"$f":"SUMIFS(Master!$G$12:$G$4000,Master!$E$12:$E$4000,C22,Master!$B$12:$B$4000,\">=\"&E$5,Master!$B$12:$B$4000,\"<=\"&EOMONTH(E$5,0))","v":0}]
[0,null,"spa",null,{"$f":"(INDEX('service input'!$F$10:$N$141,MATCH($C23,'service input'!$E$10:$E$140,0),MATCH(E$5-DAY(E$5)+1,referencemonth,1)+MATCH(\"MRP\",'service input'!$F$7:$N$7,0)-1))*F23","v":0},{"$f":"SUMIFS(Master!$G$12:$G$4000,Master!$E$12:$E$4000,C23,Master!$B$12:$B$4000,\">=\"&E$5,Master!$B$12:$B$4000,\"<=\"&EOMONTH(E$5,0))","v":0}]
[0,null,0,null,{"$f":"(INDEX('service input'!$F$10:$N$141,MATCH($C24,'service input'!$E$10:$E$140,0),MATCH(E$5-DAY(E$5)+1,referencemonth,1)+MATCH(\"MRP\",'service input'!$F$7:$N$7,0)-1))*F24","v":{"$error":"#N/A"}},{"$f":"SUMIFS(Master!$G$12:$G$4000,Master!$E$12:$E$4000,C24,Master!$B$12:$B$4000,\">=\"&E$5,Master!$B$12:$B$4000,\"<=\"&EOMONTH(E$5,0))","v":0}]
[0,null,0,null,{"$f":"(INDEX('service input'!$F$10:$N$141,MATCH($C25,'service input'!$E$10:$E$140,0),MATCH(E$5-DAY(E$5)+1,referencemonth,1)+MATCH(\"MRP\",'service input'!$F$7:$N$7,0)-1))*F25","v":{"$error":"#N/A"}},{"$f":"SUMIFS(Master!$G$12:$G$4000,Master!$E$12:$E$4000,C25,Master!$B$12:$B$4000,\">=\"&E$5,Master!$B$12:$B$4000,\"<=\"&EOMONTH(E$5,0))","v":0}]
[0,"nail_filling_and_paint","nail filling & paint",null,{"$f":"(INDEX('service input'!$F$10:$N$141,MATCH($C26,'service input'!$E$10:$E$140,0),MATCH(E$5-DAY(E$5)+1,referencemonth,1)+MATCH(\"MRP\",'service input'!$F$7:$N$7,0)-1))*F26","v":0},{"$f":"SUMIFS(Master!$G$12:$G$4000,Master!$E$12:$E$4000,C26,Master!$B$12:$B$4000,\">=\"&E$5,Master!$B$12:$B$4000,\"<=\"&EOMONTH(E$5,0))","v":0}]
[0,null,0,null,{"$f":"(INDEX('service input'!$F$10:$N$141,MATCH($C27,'service input'!$E$10:$E$140,0),MATCH(E$5-DAY(E$5)+1,referencemonth,1)+MATCH(\"MRP\",'service input'!$F$7:$N$7,0)-1))*F27","v":{"$error":"#N/A"}},{"$f":"SUMIFS(Master!$G$12:$G$4000,Master!$E$12:$E$4000,C27,Master!$B$12:$B$4000,\">=\"&E$5,Master!$B$12:$B$4000,\"<=\"&EOMONTH(E$5,0))","v":0}]
[0,null,0,null,{"$f":"(INDEX('service input'!$F$10:$N$141,MATCH($C28,'service input'!$E$10:$E$140,0),MATCH(E$5-DAY(E$5)+1,referencemonth,1)+MATCH(\"MRP\",'service input'!$F$7:$N$7,0)-1))*F28","v":{"$error":"#N/A"}},{"$f":"SUMIFS(Master!$G$12:$G$4000,Master!$E$12:$E$4000,C28,Master!$B$12:$B$4000,\">=\"&E$5,Master!$B$12:$B$4000,\"<=\"&EOMONTH(E$5,0))","v":0}]
[0,null,0,null,{"$f":"(INDEX('service input'!$F$10:$N$141,MATCH($C29,'service input'!$E$10:$E$140,0),MATCH(E$5-DAY(E$5)+1,referencemonth,1)+MATCH(\"MRP\",'service input'!$F$7:$N$7,0)-1))*F29","v":{"$error":"#N/A"}},{"$f":"SUMIFS(Master!$G$12:$G$4000,Master!$E$12:$E$4000,C29,Master!$B$12:$B$4000,\">=\"&E$5,Master!$B$12:$B$4000,\"<=\"&EOMONTH(E$5,0))","v":0}]
[0,"hair_cut","Baby cut",null,{"$f":"(INDEX('service input'!$F$10:$N$141,MATCH($C30,'service input'!$E$10:$E$140,0),MATCH(E$5-DAY(E$5)+1,referencemonth,1)+MATCH(\"MRP\",'service input'!$F$7:$N$7,0)-1))*F30","v":0},{"$f":"SUMIFS(Master!$G$12:$G$4000,Master!$E$12:$E$4000,C30,Master!$B$12:$B$4000,\">=\"&E$5,Master!$B$12:$B$4000,\"<=\"&EOMONTH(E$5,0))","v":0}]
[0,null,"pop cut",null,{"$f":"(INDEX('service input'!$F$10:$N$141,MATCH($C31,'service input'!$E$10:$E$140,0),MATCH(E$5-DAY(E$5)+1,referencemonth,1)+MATCH(\"MRP\",'service input'!$F$7:$N$7,0)-1))*F31","v":0},{"$f":"SUMIFS(Master!$G$12:$G$4000,Master!$E$12:$E$4000,C31,Master!$B$12:$B$4000,\">=\"&E$5,Master!$B$12:$B$4000,\"<=\"&EOMONTH(E$5,0))","v":0}]
[0,null,"stright cut",null,{"$f":"(INDEX('service input'!$F$10:$N$141,MATCH($C32,'service input'!$E$10:$E$140,0),MATCH(E$5-DAY(E$5)+1,referencemonth,1)+MATCH(\"MRP\",'service input'!$F$7:$N$7,0)-1))*F32","v":0},{"$f":"SUMIFS(Master!$G$12:$G$4000,Master!$E$12:$E$4000,C32,Master!$B$12:$B$4000,\">=\"&E$5,Master!$B$12:$B$4000,\"<=\"&EOMONTH(E$5,0))","v":0}]
[0,null,"u cut",null,{"$f":"(INDEX('service input'!$F$10:$N$141,MATCH($C33,'service input'!$E$10:$E$140,0),MATCH(E$5-DAY(E$5)+1,referencemonth,1)+MATCH(\"MRP\",'service input'!$F$7:$N$7,0)-1))*F33","v":0},{"$f":"SUMIFS(Master!$G$12:$G$4000,Master!$E$12:$E$4000,C33,Master!$B$12:$B$4000,\">=\"&E$5,Master!$B$12:$B$4000,\"<=\"&EOMONTH(E$5,0))","v":0}]
[0,null,"v cut",null,{"$f":"(INDEX('service input'!$F$10:$N$141,MATCH($C34,'service input'!$E$10:$E$140,0),MATCH(E$5-DAY(E$5)+1,referencemonth,1)+MATCH(\"MRP\",'service input'!$F$7:$N$7,0)-1))*F34","v":0},{"$f":"SUMIFS(Master!$G$12:$G$4000,Master!$E$12:$E$4000,C34,Master!$B$12:$B$4000,\">=\"&E$5,Master!$B$12:$B$4000,\"<=\"&EOMONTH(E$5,0))","v":0}]
[0,null,"step cut",null,{"$f":"(INDEX('service input'!$F$10:$N$141,MATCH($C35,'service input'!$E$10:$E$140,0),MATCH(E$5-DAY(E$5)+1,referencemonth,1)+MATCH(\"MRP\",'service input'!$F$7:$N$7,0)-1))*F35","v":0},{"$f":"SUMIFS(Master!$G$12:$G$4000,Master!$E$12:$E$4000,C35,Master!$B$12:$B$4000,\">=\"&E$5,Master!$B$12:$B$4000,\"<=\"&EOMONTH(E$5,0))","v":0}]
[0,null,"feather cut",null,{"$f":"(INDEX('service input'!$F$10:$N$141,MATCH($C36,'service input'!$E$10:$E$140,0),MATCH(E$5-DAY(E$5)+1,referencemonth,1)+MATCH(\"MRP\",'service input'!$F$7:$N$7,0)-1))*F36","v":0},{"$f":"SUMIFS(Master!$G$12:$G$4000,Master!$E$12:$E$4000,C36,Master!$B$12:$B$4000,\">=\"&E$5,Master!$B$12:$B$4000,\"<=\"&EOMONTH(E$5,0))","v":0}]
[0,null,"musroom cut",null,{"$f":"(INDEX('service input'!$F$10:$N$141,MATCH($C37,'service input'!$E$10:$E$140,0),MATCH(E$5-DAY(E$5)+1,referencemonth,1)+MATCH(\"MRP\",'service input'!$F$7:$N$7,0)-1))*F37","v":0},{"$f":"SUMIFS(Master!$G$12:$G$4000,Master!$E$12:$E$4000,C37,Master!$B$12:$B$4000,\">=\"&E$5,Master!$B$12:$B$4000,\"<=\"&EOMONTH(E$5,0))","v":0}]
[0,null,0,null,{"$f":"(INDEX('service input'!$F$10:$N$141,MATCH($C38,'service input'!$E$10:$E$140,0),MATCH(E$5-DAY(E$5)+1,referencemonth,1)+MATCH(\"MRP\",'service input'!$F$7:$N$7,0)-1))*F38","v":{"$error":"#N/A"}},{"$f":"SUMIFS(Master!$G$12:$G$4000,Master!$E$12:$E$4000,C38,Master!$B$12:$B$4000,\">=\"&E$5,Master!$B$12:$B$4000,\"<=\"&EOMONTH(E$5,0))","v":0}]
[0,"hair_styling_Ironing_tongs","temporary ironing ",null,{"$f":"(INDEX('service input'!$F$10:$N$141,MATCH($C39,'service input'!$E$10:$E$140,0),MATCH(E$5-DAY(E$5)+1,referencemonth,1)+MATCH(\"MRP\",'service input'!$F$7:$N$7,0)-1))*F39","v":{"$error":"#VALUE!"}},{"$f":"SUMIFS(Master!$G$12:$G$4000,Master!$E$12:$E$4000,C39,Master!$B$12:$B$4000,\">=\"&E$5,Master!$B$12:$B$4000,\"<=\"&EOMONTH(E$5,0))","v":0}]
[0,null,0,null,{"$f":"(INDEX('service input'!$F$10:$N$141,MATCH($C40,'service input'!$E$10:$E$140,0),MATCH(E$5-DAY(E$5)+1,referencemonth,1)+MATCH(\"MRP\",'service input'!$F$7:$N$7,0)-1))*F40","v":{"$error":"#N/A"}},{"$f":"SUMIFS(Master!$G$12:$G$4000,Master!$E$12:$E$4000,C40,Master!$B$12:$B$4000,\">=\"&E$5,Master!$B$12:$B$4000,\"<=\"&EOMONTH(E$5,0))","v":0}]
[0,null,0,null,{"$f":"(INDEX('service input'!$F$10:$N$141,MATCH($C41,'service input'!$E$10:$E$140,0),MATCH(E$5-DAY(E$5)+1,referencemonth,1)+MATCH(\"MRP\",'service input'!$F$7:$N$7,0)-1))*F41","v":{"$error":"#N/A"}},{"$f":"SUMIFS(Master!$G$12:$G$4000,Master!$E$12:$E$4000,C41,Master!$B$12:$B$4000,\">=\"&E$5,Master!$B$12:$B$4000,\"<=\"&EOMONTH(E$5,0))","v":0}]
[0,"Hair_wash_shampoo","Oil massage & hair wash",null,{"$f":"(INDEX('service input'!$F$10:$N$141,MATCH($C42,'service input'!$E$10:$E$140,0),MATCH(E$5-DAY(E$5)+1,referencemonth,1)+MATCH(\"MRP\",'service input'!$F$7:$N$7,0)-1))*F42","v":0},{"$f":"SUMIFS(Master!$G$12:$G$4000,Master!$E$12:$E$4000,C42,Master!$B$12:$B$4000,\">=\"&E$5,Master!$B$12:$B$4000,\"<=\"&EOMONTH(E$5,0))","v":0}]
[0,null,"oil massage  with root pack",null,{"$f":"(INDEX('service input'!$F$10:$N$141,MATCH($C43,'service input'!$E$10:$E$140,0),MATCH(E$5-DAY(E$5)+1,referencemonth,1)+MATCH(\"MRP\",'service input'!$F$7:$N$7,0)-1))*F43","v":0},{"$f":"SUMIFS(Master!$G$12:$G$4000,Master!$E$12:$E$4000,C43,Master!$B$12:$B$4000,\">=\"&E$5,Master!$B$12:$B$4000,\"<=\"&EOMONTH(E$5,0))","v":0}]
[0,null,"oil massage & serum with root pack",null,{"$f":"(INDEX('service input'!$F$10:$N$141,MATCH($C44,'service input'!$E$10:$E$140,0),MATCH(E$5-DAY(E$5)+1,referencemonth,1)+MATCH(\"MRP\",'service input'!$F$7:$N$7,0)-1))*F44","v":0},{"$f":"SUMIFS(Master!$G$12:$G$4000,Master!$E$12:$E$4000,C44,Master!$B$12:$B$4000,\">=\"&E$5,Master!$B$12:$B$4000,\"<=\"&EOMONTH(E$5,0))","v":0}]
[0,null,0,null,{"$f":"(INDEX('service input'!$F$10:$N$141,MATCH($C45,'service input'!$E$10:$E$140,0),MATCH(E$5-DAY(E$5)+1,referencemonth,1)+MATCH(\"MRP\",'service input'!$F$7:$N$7,0)-1))*F45","v":{"$error":"#N/A"}},{"$f":"SUMIFS(Master!$G$12:$G$4000,Master!$E$12:$E$4000,C45,Master!$B$12:$B$4000,\">=\"&E$5,Master!$B$12:$B$4000,\"<=\"&EOMONTH(E$5,0))","v":0}]
[0,null,0,null,{"$f":"(INDEX('service input'!$F$10:$N$141,MATCH($C46,'service input'!$E$10:$E$140,0),MATCH(E$5-DAY(E$5)+1,referencemonth,1)+MATCH(\"MRP\",'service input'!$F$7:$N$7,0)-1))*F46","v":{"$error":"#N/A"}},{"$f":"SUMIFS(Master!$G$12:$G$4000,Master!$E$12:$E$4000,C46,Master!$B$12:$B$4000,\">=\"&E$5,Master!$B$12:$B$4000,\"<=\"&EOMONTH(E$5,0))","v":0}]
[0,"Hair_colouring ","dye",null,{"$f":"(INDEX('service input'!$F$10:$N$141,MATCH($C47,'service input'!$E$10:$E$140,0),MATCH(E$5-DAY(E$5)+1,referencemonth,1)+MATCH(\"MRP\",'service input'!$F$7:$N$7,0)-1))*F47","v":{"$error":"#VALUE!"}},{"$f":"SUMIFS(Master!$G$12:$G$4000,Master!$E$12:$E$4000,C47,Master!$B$12:$B$4000,\">=\"&E$5,Master!$B$12:$B$4000,\"<=\"&EOMONTH(E$5,0))","v":0}]
[0,null,"high light",null,{"$f":"(INDEX('service input'!$F$10:$N$141,MATCH($C48,'service input'!$E$10:$E$140,0),MATCH(E$5-DAY(E$5)+1,referencemonth,1)+MATCH(\"MRP\",'service input'!$F$7:$N$7,0)-1))*F48","v":{"$error":"#VALUE!"}},{"$f":"SUMIFS(Master!$G$12:$G$4000,Master!$E$12:$E$4000,C48,Master!$B$12:$B$4000,\">=\"&E$5,Master!$B$12:$B$4000,\"<=\"&EOMONTH(E$5,0))","v":0}]
[0,null,"full colour",null,{"$f":"(INDEX('service input'!$F$10:$N$141,MATCH($C49,'service input'!$E$10:$E$140,0),MATCH(E$5-DAY(E$5)+1,referencemonth,1)+MATCH(\"MRP\",'service input'!$F$7:$N$7,0)-1))*F49","v":{"$error":"#VALUE!"}},{"$f":"SUMIFS(Master!$G$12:$G$4000,Master!$E$12:$E$4000,C49,Master!$B$12:$B$4000,\">=\"&E$5,Master!$B$12:$B$4000,\"<=\"&EOMONTH(E$5,0))","v":0}]
[0,null,"henna",null,{"$f":"(INDEX('service input'!$F$10:$N$141,MATCH($C50,'service input'!$E$10:$E$140,0),MATCH(E$5-DAY(E$5)+1,referencemonth,1)+MATCH(\"MRP\",'service input'!$F$7:$N$7,0)-1))*F50","v":{"$error":"#VALUE!"}},{"$f":"SUMIFS(Master!$G$12:$G$4000,Master!$E$12:$E$4000,C50,Master!$B$12:$B$4000,\">=\"&E$5,Master!$B$12:$B$4000,\"<=\"&EOMONTH(E$5,0))","v":0}]
[0,null,0,null,{"$f":"(INDEX('service input'!$F$10:$N$141,MATCH($C51,'service input'!$E$10:$E$140,0),MATCH(E$5-DAY(E$5)+1,referencemonth,1)+MATCH(\"MRP\",'service input'!$F$7:$N$7,0)-1))*F51","v":{"$error":"#N/A"}},{"$f":"SUMIFS(Master!$G$12:$G$4000,Master!$E$12:$E$4000,C51,Master!$B$12:$B$4000,\">=\"&E$5,Master!$B$12:$B$4000,\"<=\"&EOMONTH(E$5,0))","v":0}]
[0,null,0,null,{"$f":"(INDEX('service input'!$F$10:$N$141,MATCH($C52,'service input'!$E$10:$E$140,0),MATCH(E$5-DAY(E$5)+1,referencemonth,1)+MATCH(\"MRP\",'service input'!$F$7:$N$7,0)-1))*F52","v":{"$error":"#N/A"}},{"$f":"SUMIFS(Master!$G$12:$G$4000,Master!$E$12:$E$4000,C52,Master!$B$12:$B$4000,\">=\"&E$5,Master!$B$12:$B$4000,\"<=\"&EOMONTH(E$5,0))","v":0}]
[0,"permanent_hair_straightning ","permanent hair straightning ",null,{"$f":"(INDEX('service input'!$F$10:$N$141,MATCH($C53,'service input'!$E$10:$E$140,0),MATCH(E$5-DAY(E$5)+1,referencemonth,1)+MATCH(\"MRP\",'service input'!$F$7:$N$7,0)-1))*F53","v":{"$error":"#VALUE!"}},{"$f":"SUMIFS(Master!$G$12:$G$4000,Master!$E$12:$E$4000,C53,Master!$B$12:$B$4000,\">=\"&E$5,Master!$B$12:$B$4000,\"<=\"&EOMONTH(E$5,0))","v":0}]
[0,null,0,null,{"$f":"(INDEX('service input'!$F$10:$N$141,MATCH($C54,'service input'!$E$10:$E$140,0),MATCH(E$5-DAY(E$5)+1,referencemonth,1)+MATCH(\"MRP\",'service input'!$F$7:$N$7,0)-1))*F54","v":{"$error":"#N/A"}},{"$f":"SUMIFS(Master!$G$12:$G$4000,Master!$E$12:$E$4000,C54,Master!$B$12:$B$4000,\">=\"&E$5,Master!$B$12:$B$4000,\"<=\"&EOMONTH(E$5,0))","v":0}]
[0,"hair_curling","hair curling.",null,{"$f":"(INDEX('service input'!$F$10:$N$141,MATCH($C55,'service input'!$E$10:$E$140,0),MATCH(E$5-DAY(E$5)+1,referencemonth,1)+MATCH(\"MRP\",'service input'!$F$7:$N$7,0)-1))*F55","v":{"$error":"#VALUE!"}},{"$f":"SUMIFS(Master!$G$12:$G$4000,Master!$E$12:$E$4000,C55,Master!$B$12:$B$4000,\">=\"&E$5,Master!$B$12:$B$4000,\"<=\"&EOMONTH(E$5,0))","v":0}]
[0,null,0,null,{"$f":"(INDEX('service input'!$F$10:$N$141,MATCH($C56,'service input'!$E$10:$E$140,0),MATCH(E$5-DAY(E$5)+1,referencemonth,1)+MATCH(\"MRP\",'service input'!$F$7:$N$7,0)-1))*F56","v":{"$error":"#N/A"}},{"$f":"SUMIFS(Master!$G$12:$G$4000,Master!$E$12:$E$4000,C56,Master!$B$12:$B$4000,\">=\"&E$5,Master!$B$12:$B$4000,\"<=\"&EOMONTH(E$5,0))","v":0}]
[0,null,0,null,{"$f":"(INDEX('service input'!$F$10:$N$141,MATCH($C57,'service input'!$E$10:$E$140,0),MATCH(E$5-DAY(E$5)+1,referencemonth,1)+MATCH(\"MRP\",'service input'!$F$7:$N$7,0)-1))*F57","v":{"$error":"#N/A"}},{"$f":"SUMIFS(Master!$G$12:$G$4000,Master!$E$12:$E$4000,C57,Master!$B$12:$B$4000,\">=\"&E$5,Master!$B$12:$B$4000,\"<=\"&EOMONTH(E$5,0))","v":0}]
[0,"hair_spa","hair_spa",null,{"$f":"(INDEX('service input'!$F$10:$N$141,MATCH($C58,'service input'!$E$10:$E$140,0),MATCH(E$5-DAY(E$5)+1,referencemonth,1)+MATCH(\"MRP\",'service input'!$F$7:$N$7,0)-1))*F58","v":{"$error":"#VALUE!"}},{"$f":"SUMIFS(Master!$G$12:$G$4000,Master!$E$12:$E$4000,C58,Master!$B$12:$B$4000,\">=\"&E$5,Master!$B$12:$B$4000,\"<=\"&EOMONTH(E$5,0))","v":0}]
[0,null,0,null,{"$f":"(INDEX('service input'!$F$10:$N$141,MATCH($C59,'service input'!$E$10:$E$140,0),MATCH(E$5-DAY(E$5)+1,referencemonth,1)+MATCH(\"MRP\",'service input'!$F$7:$N$7,0)-1))*F59","v":{"$error":"#N/A"}},{"$f":"SUMIFS(Master!$G$12:$G$4000,Master!$E$12:$E$4000,C59,Master!$B$12:$B$4000,\">=\"&E$5,Master!$B$12:$B$4000,\"<=\"&EOMONTH(E$5,0))","v":0}]
[0,null,0,null,{"$f":"(INDEX('service input'!$F$10:$N$141,MATCH($C60,'service input'!$E$10:$E$140,0),MATCH(E$5-DAY(E$5)+1,referencemonth,1)+MATCH(\"MRP\",'service input'!$F$7:$N$7,0)-1))*F60","v":{"$error":"#N/A"}},{"$f":"SUMIFS(Master!$G$12:$G$4000,Master!$E$12:$E$4000,C60,Master!$B$12:$B$4000,\">=\"&E$5,Master!$B$12:$B$4000,\"<=\"&EOMONTH(E$5,0))","v":0}]
[0,"Anti_dandruff ","Anti dandruff ",null,{"$f":"(INDEX('service input'!$F$10:$N$141,MATCH($C61,'service input'!$E$10:$E$140,0),MATCH(E$5-DAY(E$5)+1,referencemonth,1)+MATCH(\"MRP\",'service input'!$F$7:$N$7,0)-1))*F61","v":{"$error":"#VALUE!"}},{"$f":"SUMIFS(Master!$G$12:$G$4000,Master!$E$12:$E$4000,C61,Master!$B$12:$B$4000,\">=\"&E$5,Master!$B$12:$B$4000,\"<=\"&EOMONTH(E$5,0))","v":0}]
[0,null,0,null,{"$f":"(INDEX('service input'!$F$10:$N$141,MATCH($C62,'service input'!$E$10:$E$140,0),MATCH(E$5-DAY(E$5)+1,referencemonth,1)+MATCH(\"MRP\",'service input'!$F$7:$N$7,0)-1))*F62","v":{"$error":"#N/A"}},{"$f":"SUMIFS(Master!$G$12:$G$4000,Master!$E$12:$E$4000,C62,Master!$B$12:$B$4000,\">=\"&E$5,Master!$B$12:$B$4000,\"<=\"&EOMONTH(E$5,0))","v":0}]
[0,null,0,null,{"$f":"(INDEX('service input'!$F$10:$N$141,MATCH($C63,'service input'!$E$10:$E$140,0),MATCH(E$5-DAY(E$5)+1,referencemonth,1)+MATCH(\"MRP\",'service input'!$F$7:$N$7,0)-1))*F63","v":{"$error":"#N/A"}},{"$f":"SUMIFS(Master!$G$12:$G$4000,Master!$E$12:$E$4000,C63,Master!$B$12:$B$4000,\">=\"&E$5,Master!$B$12:$B$4000,\"<=\"&EOMONTH(E$5,0))","v":0}]
[0,"Anti_dandruff_with_serum","Anti dandruff with serum",null,{"$f":"(INDEX('service input'!$F$10:$N$141,MATCH($C64,'service input'!$E$10:$E$140,0),MATCH(E$5-DAY(E$5)+1,referencemonth,1)+MATCH(\"MRP\",'service input'!$F$7:$N$7,0)-1))*F64","v":0},{"$f":"SUMIFS(Master!$G$12:$G$4000,Master!$E$12:$E$4000,C64,Master!$B$12:$B$4000,\">=\"&E$5,Master!$B$12:$B$4000,\"<=\"&EOMONTH(E$5,0))","v":0}]
[0,null,0,null,{"$f":"(INDEX('service input'!$F$10:$N$141,MATCH($C65,'service input'!$E$10:$E$140,0),MATCH(E$5-DAY(E$5)+1,referencemonth,1)+MATCH(\"MRP\",'service input'!$F$7:$N$7,0)-1))*F65","v":{"$error":"#N/A"}},{"$f":"SUMIFS(Master!$G$12:$G$4000,Master!$E$12:$E$4000,C65,Master!$B$12:$B$4000,\">=\"&E$5,Master!$B$12:$B$4000,\"<=\"&EOMONTH(E$5,0))","v":0}]
[0,null,0,null,{"$f":"(INDEX('service input'!$F$10:$N$141,MATCH($C66,'service input'!$E$10:$E$140,0),MATCH(E$5-DAY(E$5)+1,referencemonth,1)+MATCH(\"MRP\",'service input'!$F$7:$N$7,0)-1))*F66","v":{"$error":"#N/A"}},{"$f":"SUMIFS(Master!$G$12:$G$4000,Master!$E$12:$E$4000,C66,Master!$B$12:$B$4000,\">=\"&E$5,Master!$B$12:$B$4000,\"<=\"&EOMONTH(E$5,0))","v":0}]
[0,"Anti_hair_fall","Anti hair fall",null,{"$f":"(INDEX('service input'!$F$10:$N$141,MATCH($C67,'service input'!$E$10:$E$140,0),MATCH(E$5-DAY(E$5)+1,referencemonth,1)+MATCH(\"MRP\",'service input'!$F$7:$N$7,0)-1))*F67","v":{"$error":"#VALUE!"}},{"$f":"SUMIFS(Master!$G$12:$G$4000,Master!$E$12:$E$4000,C67,Master!$B$12:$B$4000,\">=\"&E$5,Master!$B$12:$B$4000,\"<=\"&EOMONTH(E$5,0))","v":0}]
[0,null,0,null,{"$f":"(INDEX('service input'!$F$10:$N$141,MATCH($C68,'service input'!$E$10:$E$140,0),MATCH(E$5-DAY(E$5)+1,referencemonth,1)+MATCH(\"MRP\",'service input'!$F$7:$N$7,0)-1))*F68","v":{"$error":"#N/A"}},{"$f":"SUMIFS(Master!$G$12:$G$4000,Master!$E$12:$E$4000,C68,Master!$B$12:$B$4000,\">=\"&E$5,Master!$B$12:$B$4000,\"<=\"&EOMONTH(E$5,0))","v":0}]
[0,null,0,null,{"$f":"(INDEX('service input'!$F$10:$N$141,MATCH($C69,'service input'!$E$10:$E$140,0),MATCH(E$5-DAY(E$5)+1,referencemonth,1)+MATCH(\"MRP\",'service input'!$F$7:$N$7,0)-1))*F69","v":{"$error":"#N/A"}},{"$f":"SUMIFS(Master!$G$12:$G$4000,Master!$E$12:$E$4000,C69,Master!$B$12:$B$4000,\">=\"&E$5,Master!$B$12:$B$4000,\"<=\"&EOMONTH(E$5,0))","v":0}]
[0,null,0,null,{"$f":"(INDEX('service input'!$F$10:$N$141,MATCH($C70,'service input'!$E$10:$E$140,0),MATCH(E$5-DAY(E$5)+1,referencemonth,1)+MATCH(\"MRP\",'service input'!$F$7:$N$7,0)-1))*F70","v":{"$error":"#N/A"}},{"$f":"SUMIFS(Master!$G$12:$G$4000,Master!$E$12:$E$4000,C70,Master!$B$12:$B$4000,\">=\"&E$5,Master!$B$12:$B$4000,\"<=\"&EOMONTH(E$5,0))","v":0}]
[0,"mehandi","Arabic design",null,{"$f":"(INDEX('service input'!$F$10:$N$141,MATCH($C71,'service input'!$E$10:$E$140,0),MATCH(E$5-DAY(E$5)+1,referencemonth,1)+MATCH(\"MRP\",'service input'!$F$7:$N$7,0)-1))*F71","v":{"$error":"#VALUE!"}},{"$f":"SUMIFS(Master!$G$12:$G$4000,Master!$E$12:$E$4000,C71,Master!$B$12:$B$4000,\">=\"&E$5,Master!$B$12:$B$4000,\"<=\"&EOMONTH(E$5,0))","v":0}]
[0,null,"traditional design",null,{"$f":"(INDEX('service input'!$F$10:$N$141,MATCH($C72,'service input'!$E$10:$E$140,0),MATCH(E$5-DAY(E$5)+1,referencemonth,1)+MATCH(\"MRP\",'service input'!$F$7:$N$7,0)-1))*F72","v":{"$error":"#VALUE!"}},{"$f":"SUMIFS(Master!$G$12:$G$4000,Master!$E$12:$E$4000,C72,Master!$B$12:$B$4000,\">=\"&E$5,Master!$B$12:$B$4000,\"<=\"&EOMONTH(E$5,0))","v":0}]
[0,null,"bride mehandi",null,{"$f":"(INDEX('service input'!$F$10:$N$141,MATCH($C73,'service input'!$E$10:$E$140,0),MATCH(E$5-DAY(E$5)+1,referencemonth,1)+MATCH(\"MRP\",'service input'!$F$7:$N$7,0)-1))*F73","v":0},{"$f":"SUMIFS(Master!$G$12:$G$4000,Master!$E$12:$E$4000,C73,Master!$B$12:$B$4000,\">=\"&E$5,Master!$B$12:$B$4000,\"<=\"&EOMONTH(E$5,0))","v":0}]
[0,null,"colour mehandi",null,{"$f":"(INDEX('service input'!$F$10:$N$141,MATCH($C74,'service input'!$E$10:$E$140,0),MATCH(E$5-DAY(E$5)+1,referencemonth,1)+MATCH(\"MRP\",'service input'!$F$7:$N$7,0)-1))*F74","v":{"$error":"#VALUE!"}},{"$f":"SUMIFS(Master!$G$12:$G$4000,Master!$E$12:$E$4000,C74,Master!$B$12:$B$4000,\">=\"&E$5,Master!$B$12:$B$4000,\"<=\"&EOMONTH(E$5,0))","v":0}]
[0,null,0,null,{"$f":"(INDEX('service input'!$F$10:$N$141,MATCH($C75,'service input'!$E$10:$E$140,0),MATCH(E$5-DAY(E$5)+1,referencemonth,1)+MATCH(\"MRP\",'service input'!$F$7:$N$7,0)-1))*F75","v":{"$error":"#N/A"}},{"$f":"SUMIFS(Master!$G$12:$G$4000,Master!$E$12:$E$4000,C75,Master!$B$12:$B$4000,\">=\"&E$5,Master!$B$12:$B$4000,\"<=\"&EOMONTH(E$5,0))","v":0}]
[0,null,0,null,{"$f":"(INDEX('service input'!$F$10:$N$141,MATCH($C76,'service input'!$E$10:$E$140,0),MATCH(E$5-DAY(E$5)+1,referencemonth,1)+MATCH(\"MRP\",'service input'!$F$7:$N$7,0)-1))*F76","v":{"$error":"#N/A"}},{"$f":"SUMIFS(Master!$G$12:$G$4000,Master!$E$12:$E$4000,C76,Master!$B$12:$B$4000,\">=\"&E$5,Master!$B$12:$B$4000,\"<=\"&EOMONTH(E$5,0))","v":0}]
[0,"bleach","fruit bleach",null,{"$f":"(INDEX('service input'!$F$10:$N$141,MATCH($C77,'service input'!$E$10:$E$140,0),MATCH(E$5-DAY(E$5)+1,referencemonth,1)+MATCH(\"MRP\",'service input'!$F$7:$N$7,0)-1))*F77","v":0},{"$f":"SUMIFS(Master!$G$12:$G$4000,Master!$E$12:$E$4000,C77,Master!$B$12:$B$4000,\">=\"&E$5,Master!$B$12:$B$4000,\"<=\"&EOMONTH(E$5,0))","v":0}]
[0,null,"gold bleach",null,{"$f":"(INDEX('service input'!$F$10:$N$141,MATCH($C78,'service input'!$E$10:$E$140,0),MATCH(E$5-DAY(E$5)+1,referencemonth,1)+MATCH(\"MRP\",'service input'!$F$7:$N$7,0)-1))*F78","v":0},{"$f":"SUMIFS(Master!$G$12:$G$4000,Master!$E$12:$E$4000,C78,Master!$B$12:$B$4000,\">=\"&E$5,Master!$B$12:$B$4000,\"<=\"&EOMONTH(E$5,0))","v":0}]
[0,null,"diamond bleach",null,{"$f":"(INDEX('service input'!$F$10:$N$141,MATCH($C79,'service input'!$E$10:$E$140,0),MATCH(E$5-DAY(E$5)+1,referencemonth,1)+MATCH(\"MRP\",'service input'!$F$7:$N$7,0)-1))*F79","v":0},{"$f":"SUMIFS(Master!$G$12:$G$4000,Master!$E$12:$E$4000,C79,Master!$B$12:$B$4000,\">=\"&E$5,Master!$B$12:$B$4000,\"<=\"&EOMONTH(E$5,0))","v":0}]
[0,null,"pearl bleach",null,{"$f":"(INDEX('service input'!$F$10:$N$141,MATCH($C80,'service input'!$E$10:$E$140,0),MATCH(E$5-DAY(E$5)+1,referencemonth,1)+MATCH(\"MRP\",'service input'!$F$7:$N$7,0)-1))*F80","v":0},{"$f":"SUMIFS(Master!$G$12:$G$4000,Master!$E$12:$E$4000,C80,Master!$B$12:$B$4000,\">=\"&E$5,Master!$B$12:$B$4000,\"<=\"&EOMONTH(E$5,0))","v":0}]
[0,null,"niconi bleach",null,{"$f":"(INDEX('service input'!$F$10:$N$141,MATCH($C81,'service input'!$E$10:$E$140,0),MATCH(E$5-DAY(E$5)+1,referencemonth,1)+MATCH(\"MRP\",'service input'!$F$7:$N$7,0)-1))*F81","v":0},{"$f":"SUMIFS(Master!$G$12:$G$4000,Master!$E$12:$E$4000,C81,Master!$B$12:$B$4000,\">=\"&E$5,Master!$B$12:$B$4000,\"<=\"&EOMONTH(E$5,0))","v":0}]
[0,null,"hand bleach",null,{"$f":"(INDEX('service input'!$F$10:$N$141,MATCH($C82,'service input'!$E$10:$E$140,0),MATCH(E$5-DAY(E$5)+1,referencemonth,1)+MATCH(\"MRP\",'service input'!$F$7:$N$7,0)-1))*F82","v":{"$error":"#VALUE!"}},{"$f":"SUMIFS(Master!$G$12:$G$4000,Master!$E$12:$E$4000,C82,Master!$B$12:$B$4000,\">=\"&E$5,Master!$B$12:$B$4000,\"<=\"&EOMONTH(E$5,0))","v":0}]
[0,null,"leg bleach",null,{"$f":"(INDEX('service input'!$F$10:$N$141,MATCH($C83,'service input'!$E$10:$E$140,0),MATCH(E$5-DAY(E$5)+1,referencemonth,1)+MATCH(\"MRP\",'service input'!$F$7:$N$7,0)-1))*F83","v":{"$error":"#VALUE!"}},{"$f":"SUMIFS(Master!$G$12:$G$4000,Master!$E$12:$E$4000,C83,Master!$B$12:$B$4000,\">=\"&E$5,Master!$B$12:$B$4000,\"<=\"&EOMONTH(E$5,0))","v":0}]
[0,null,0,null,{"$f":"(INDEX('service input'!$F$10:$N$141,MATCH($C84,'service input'!$E$10:$E$140,0),MATCH(E$5-DAY(E$5)+1,referencemonth,1)+MATCH(\"MRP\",'service input'!$F$7:$N$7,0)-1))*F84","v":{"$error":"#N/A"}},{"$f":"SUMIFS(Master!$G$12:$G$4000,Master!$E$12:$E$4000,C84,Master!$B$12:$B$4000,\">=\"&E$5,Master!$B$12:$B$4000,\"<=\"&EOMONTH(E$5,0))","v":0}]
[0,null,0,null,{"$f":"(INDEX('service input'!$F$10:$N$141,MATCH($C85,'service input'!$E$10:$E$140,0),MATCH(E$5-DAY(E$5)+1,referencemonth,1)+MATCH(\"MRP\",'service input'!$F$7:$N$7,0)-1))*F85","v":{"$error":"#N/A"}},{"$f":"SUMIFS(Master!$G$12:$G$4000,Master!$E$12:$E$4000,C85,Master!$B$12:$B$4000,\">=\"&E$5,Master!$B$12:$B$4000,\"<=\"&EOMONTH(E$5,0))","v":0}]
[0,"facial","fruit facial",null,{"$f":"(INDEX('service input'!$F$10:$N$141,MATCH($C86,'service input'!$E$10:$E$140,0),MATCH(E$5-DAY(E$5)+1,referencemonth,1)+MATCH(\"MRP\",'service input'!$F$7:$N$7,0)-1))*F86","v":{"$error":"#VALUE!"}},{"$f":"SUMIFS(Master!$G$12:$G$4000,Master!$E$12:$E$4000,C86,Master!$B$12:$B$4000,\">=\"&E$5,Master!$B$12:$B$4000,\"<=\"&EOMONTH(E$5,0))","v":0}]
[0,null,"herbal facial",null,{"$f":"(INDEX('service input'!$F$10:$N$141,MATCH($C87,'service input'!$E$10:$E$140,0),MATCH(E$5-DAY(E$5)+1,referencemonth,1)+MATCH(\"MRP\",'service input'!$F$7:$N$7,0)-1))*F87","v":0},{"$f":"SUMIFS(Master!$G$12:$G$4000,Master!$E$12:$E$4000,C87,Master!$B$12:$B$4000,\">=\"&E$5,Master!$B$12:$B$4000,\"<=\"&EOMONTH(E$5,0))","v":0}]
[0,null,"diamond facial",null,{"$f":"(INDEX('service input'!$F$10:$N$141,MATCH($C88,'service input'!$E$10:$E$140,0),MATCH(E$5-DAY(E$5)+1,referencemonth,1)+MATCH(\"MRP\",'service input'!$F$7:$N$7,0)-1))*F88","v":{"$error":"#VALUE!"}},{"$f":"SUMIFS(Master!$G$12:$G$4000,Master!$E$12:$E$4000,C88,Master!$B$12:$B$4000,\">=\"&E$5,Master!$B$12:$B$4000,\"<=\"&EOMONTH(E$5,0))","v":0}]
[0,null,"pearl facial",null,{"$f":"(INDEX('service input'!$F$10:$N$141,MATCH($C89,'service input'!$E$10:$E$140,0),MATCH(E$5-DAY(E$5)+1,referencemonth,1)+MATCH(\"MRP\",'service input'!$F$7:$N$7,0)-1))*F89","v":{"$error":"#VALUE!"}},{"$f":"SUMIFS(Master!$G$12:$G$4000,Master!$E$12:$E$4000,C89,Master!$B$12:$B$4000,\">=\"&E$5,Master!$B$12:$B$4000,\"<=\"&EOMONTH(E$5,0))","v":0}]
[0,null,"silver facial",null,{"$f":"(INDEX('service input'!$F$10:$N$141,MATCH($C90,'service input'!$E$10:$E$140,0),MATCH(E$5-DAY(E$5)+1,referencemonth,1)+MATCH(\"MRP\",'service input'!$F$7:$N$7,0)-1))*F90","v":{"$error":"#VALUE!"}},{"$f":"SUMIFS(Master!$G$12:$G$4000,Master!$E$12:$E$4000,C90,Master!$B$12:$B$4000,\">=\"&E$5,Master!$B$12:$B$4000,\"<=\"&EOMONTH(E$5,0))","v":0}]
[1,null,"Gold (Fair & Glow) Facial",null,{"$f":"(INDEX('service input'!$F$10:$N$141,MATCH($C91,'service input'!$E$10:$E$140,0),MATCH(E$5-DAY(E$5)+1,referencemonth,1)+MATCH(\"MRP\",'service input'!$F$7:$N$7,0)-1))*F91","v":{"$error":"#VALUE!"}},{"$f":"SUMIFS(Master!$G$12:$G$4000,Master!$E$12:$E$4000,C91,Master!$B$12:$B$4000,\">=\"&E$5,Master!$B$12:$B$4000,\"<=\"&EOMONTH(E$5,0))","v":0}]
[0,null,"Skin whitning facial",null,{"$f":"(INDEX('service input'!$F$10:$N$141,MATCH($C92,'service input'!$E$10:$E$140,0),MATCH(E$5-DAY(E$5)+1,referencemonth,1)+MATCH(\"MRP\",'service input'!$F$7:$N$7,0)-1))*F92","v":0},{"$f":"SUMIFS(Master!$G$12:$G$4000,Master!$E$12:$E$4000,C92,Master!$B$12:$B$4000,\">=\"&E$5,Master!$B$12:$B$4000,\"<=\"&EOMONTH(E$5,0))","v":0}]
[0,null,"Aloe sensitive skin facial",null,{"$f":"(INDEX('service input'!$F$10:$N$141,MATCH($C93,'service input'!$E$10:$E$140,0),MATCH(E$5-DAY(E$5)+1,referencemonth,1)+MATCH(\"MRP\",'service input'!$F$7:$N$7,0)-1))*F93","v":0},{"$f":"SUMIFS(Master!$G$12:$G$4000,Master!$E$12:$E$4000,C93,Master!$B$12:$B$4000,\">=\"&E$5,Master!$B$12:$B$4000,\"<=\"&EOMONTH(E$5,0))","v":0}]
[0,null,"Dark Spot Treatment",null,{"$f":"(INDEX('service input'!$F$10:$N$141,MATCH($C94,'service input'!$E$10:$E$140,0),MATCH(E$5-DAY(E$5)+1,referencemonth,1)+MATCH(\"MRP\",'service input'!$F$7:$N$7,0)-1))*F94","v":0},{"$f":"SUMIFS(Master!$G$12:$G$4000,Master!$E$12:$E$4000,C94,Master!$B$12:$B$4000,\">=\"&E$5,Master!$B$12:$B$4000,\"<=\"&EOMONTH(E$5,0))","v":0}]
[0,null,"Spa Revital facial",null,{"$f":"(INDEX('service input'!$F$10:$N$141,MATCH($C95,'service input'!$E$10:$E$140,0),MATCH(E$5-DAY(E$5)+1,referencemonth,1)+MATCH(\"MRP\",'service input'!$F$7:$N$7,0)-1))*F95","v":0},{"$f":"SUMIFS(Master!$G$12:$G$4000,Master!$E$12:$E$4000,C95,Master!$B$12:$B$4000,\">=\"&E$5,Master!$B$12:$B$4000,\"<=\"&EOMONTH(E$5,0))","v":0}]
[0,null,"Pimple Treatment",null,{"$f":"(INDEX('service input'!$F$10:$N$141,MATCH($C96,'service input'!$E$10:$E$140,0),MATCH(E$5-DAY(E$5)+1,referencemonth,1)+MATCH(\"MRP\",'service input'!$F$7:$N$7,0)-1))*F96","v":{"$error":"#VALUE!"}},{"$f":"SUMIFS(Master!$G$12:$G$4000,Master!$E$12:$E$4000,C96,Master!$B$12:$B$4000,\">=\"&E$5,Master!$B$12:$B$4000,\"<=\"&EOMONTH(E$5,0))","v":0}]
[0,null,"Pigmentation treatment",null,{"$f":"(INDEX('service input'!$F$10:$N$141,MATCH($C97,'service input'!$E$10:$E$140,0),MATCH(E$5-DAY(E$5)+1,referencemonth,1)+MATCH(\"MRP\",'service input'!$F$7:$N$7,0)-1))*F97","v":{"$error":"#VALUE!"}},{"$f":"SUMIFS(Master!$G$12:$G$4000,Master!$E$12:$E$4000,C97,Master!$B$12:$B$4000,\">=\"&E$5,Master!$B$12:$B$4000,\"<=\"&EOMONTH(E$5,0))","v":0}]
[0,null,"Skin tightning facial",null,{"$f":"(INDEX('service input'!$F$10:$N$141,MATCH($C98,'service input'!$E$10:$E$140,0),MATCH(E$5-DAY(E$5)+1,referencemonth,1)+MATCH(\"MRP\",'service input'!$F$7:$N$7,0)-1))*F98","v":0},{"$f":"SUMIFS(Master!$G$12:$G$4000,Master!$E$12:$E$4000,C98,Master!$B$12:$B$4000,\">=\"&E$5,Master!$B$12:$B$4000,\"<=\"&EOMONTH(E$5,0))","v":0}]
[0,null,"Clean up",null,{"$f":"(INDEX('service input'!$F$10:$N$141,MATCH($C99,'service input'!$E$10:$E$140,0),MATCH(E$5-DAY(E$5)+1,referencemonth,1)+MATCH(\"MRP\",'service input'!$F$7:$N$7,0)-1))*F99","v":0},{"$f":"SUMIFS(Master!$G$12:$G$4000,Master!$E$12:$E$4000,C99,Master!$B$12:$B$4000,\">=\"&E$5,Master!$B$12:$B$4000,\"<=\"&EOMONTH(E$5,0))","v":0}]
[0,null,"Eye facial",null,{"$f":"(INDEX('service input'!$F$10:$N$141,MATCH($C100,'service input'!$E$10:$E$140,0),MATCH(E$5-DAY(E$5)+1,referencemonth,1)+MATCH(\"MRP\",'service input'!$F$7:$N$7,0)-1))*F100","v":0},{"$f":"SUMIFS(Master!$G$12:$G$4000,Master!$E$12:$E$4000,C100,Master!$B$12:$B$4000,\">=\"&E$5,Master!$B$12:$B$4000,\"<=\"&EOMONTH(E$5,0))","v":0}]
[0,null,0,null,{"$f":"(INDEX('service input'!$F$10:$N$141,MATCH($C101,'service input'!$E$10:$E$140,0),MATCH(E$5-DAY(E$5)+1,referencemonth,1)+MATCH(\"MRP\",'service input'!$F$7:$N$7,0)-1))*F101","v":{"$error":"#N/A"}},{"$f":"SUMIFS(Master!$G$12:$G$4000,Master!$E$12:$E$4000,C101,Master!$B$12:$B$4000,\">=\"&E$5,Master!$B$12:$B$4000,\"<=\"&EOMONTH(E$5,0))","v":0}]
[0,"Aroma_Facial","Pimple treatment",null,{"$f":"(INDEX('service input'!$F$10:$N$141,MATCH($C102,'service input'!$E$10:$E$140,0),MATCH(E$5-DAY(E$5)+1,referencemonth,1)+MATCH(\"MRP\",'service input'!$F$7:$N$7,0)-1))*F102","v":{"$error":"#VALUE!"}},{"$f":"SUMIFS(Master!$G$12:$G$4000,Master!$E$12:$E$4000,C102,Master!$B$12:$B$4000,\">=\"&E$5,Master!$B$12:$B$4000,\"<=\"&EOMONTH(E$5,0))","v":0}]
[0,null,"Pimple treatment with serum",null,{"$f":"(INDEX('service input'!$F$10:$N$141,MATCH($C103,'service input'!$E$10:$E$140,0),MATCH(E$5-DAY(E$5)+1,referencemonth,1)+MATCH(\"MRP\",'service input'!$F$7:$N$7,0)-1))*F103","v":0},{"$f":"SUMIFS(Master!$G$12:$G$4000,Master!$E$12:$E$4000,C103,Master!$B$12:$B$4000,\">=\"&E$5,Master!$B$12:$B$4000,\"<=\"&EOMONTH(E$5,0))","v":0}]
[0,null,"Pigmentation treatment",null,{"$f":"(INDEX('service input'!$F$10:$N$141,MATCH($C104,'service input'!$E$10:$E$140,0),MATCH(E$5-DAY(E$5)+1,referencemonth,1)+MATCH(\"MRP\",'service input'!$F$7:$N$7,0)-1))*F104","v":{"$error":"#VALUE!"}},{"$f":"SUMIFS(Master!$G$12:$G$4000,Master!$E$12:$E$4000,C104,Master!$B$12:$B$4000,\">=\"&E$5,Master!$B$12:$B$4000,\"<=\"&EOMONTH(E$5,0))","v":0}]
[0,null,"Pigmentation treatment used with serum",null,{"$f":"(INDEX('service input'!$F$10:$N$141,MATCH($C105,'service input'!$E$10:$E$140,0),MATCH(E$5-DAY(E$5)+1,referencemonth,1)+MATCH(\"MRP\",'service input'!$F$7:$N$7,0)-1))*F105","v":0},{"$f":"SUMIFS(Master!$G$12:$G$4000,Master!$E$12:$E$4000,C105,Master!$B$12:$B$4000,\">=\"&E$5,Master!$B$12:$B$4000,\"<=\"&EOMONTH(E$5,0))","v":0}]
[0,null,"Skin lightning facial with serum",null,{"$f":"(INDEX('service input'!$F$10:$N$141,MATCH($C106,'service input'!$E$10:$E$140,0),MATCH(E$5-DAY(E$5)+1,referencemonth,1)+MATCH(\"MRP\",'service input'!$F$7:$N$7,0)-1))*F106","v":0},{"$f":"SUMIFS(Master!$G$12:$G$4000,Master!$E$12:$E$4000,C106,Master!$B$12:$B$4000,\">=\"&E$5,Master!$B$12:$B$4000,\"<=\"&EOMONTH(E$5,0))","v":0}]
[0,null,"Normal facial",null,{"$f":"(INDEX('service input'!$F$10:$N$141,MATCH($C107,'service input'!$E$10:$E$140,0),MATCH(E$5-DAY(E$5)+1,referencemonth,1)+MATCH(\"MRP\",'service input'!$F$7:$N$7,0)-1))*F107","v":0},{"$f":"SUMIFS(Master!$G$12:$G$4000,Master!$E$12:$E$4000,C107,Master!$B$12:$B$4000,\">=\"&E$5,Master!$B$12:$B$4000,\"<=\"&EOMONTH(E$5,0))","v":0}]
[0,null,0,null,{"$f":"(INDEX('service input'!$F$10:$N$141,MATCH($C108,'service input'!$E$10:$E$140,0),MATCH(E$5-DAY(E$5)+1,referencemonth,1)+MATCH(\"MRP\",'service input'!$F$7:$N$7,0)-1))*F108","v":{"$error":"#N/A"}},{"$f":"SUMIFS(Master!$G$12:$G$4000,Master!$E$12:$E$4000,C108,Master!$B$12:$B$4000,\">=\"&E$5,Master!$B$12:$B$4000,\"<=\"&EOMONTH(E$5,0))","v":0}]
[0,null,0,null,{"$f":"(INDEX('service input'!$F$10:$N$141,MATCH($C109,'service input'!$E$10:$E$140,0),MATCH(E$5-DAY(E$5)+1,referencemonth,1)+MATCH(\"MRP\",'service input'!$F$7:$N$7,0)-1))*F109","v":{"$error":"#N/A"}},{"$f":"SUMIFS(Master!$G$12:$G$4000,Master!$E$12:$E$4000,C109,Master!$B$12:$B$4000,\">=\"&E$5,Master!$B$12:$B$4000,\"<=\"&EOMONTH(E$5,0))","v":0}]
[0,"Makeup","Trial make-up",null,{"$f":"(INDEX('service input'!$F$10:$N$141,MATCH($C110,'service input'!$E$10:$E$140,0),MATCH(E$5-DAY(E$5)+1,referencemonth,1)+MATCH(\"MRP\",'service input'!$F$7:$N$7,0)-1))*F110","v":0},{"$f":"SUMIFS(Master!$G$12:$G$4000,Master!$E$12:$E$4000,C110,Master!$B$12:$B$4000,\">=\"&E$5,Master!$B$12:$B$4000,\"<=\"&EOMONTH(E$5,0))","v":0}]
[0,null,"simple makeup",null,{"$f":"(INDEX('service input'!$F$10:$N$141,MATCH($C111,'service input'!$E$10:$E$140,0),MATCH(E$5-DAY(E$5)+1,referencemonth,1)+MATCH(\"MRP\",'service input'!$F$7:$N$7,0)-1))*F111","v":0},{"$f":"SUMIFS(Master!$G$12:$G$4000,Master!$E$12:$E$4000,C111,Master!$B$12:$B$4000,\">=\"&E$5,Master!$B$12:$B$4000,\"<=\"&EOMONTH(E$5,0))","v":0}]
[0,null,"party makeup",null,{"$f":"(INDEX('service input'!$F$10:$N$141,MATCH($C112,'service input'!$E$10:$E$140,0),MATCH(E$5-DAY(E$5)+1,referencemonth,1)+MATCH(\"MRP\",'service input'!$F$7:$N$7,0)-1))*F112","v":0},{"$f":"SUMIFS(Master!$G$12:$G$4000,Master!$E$12:$E$4000,C112,Master!$B$12:$B$4000,\">=\"&E$5,Master!$B$12:$B$4000,\"<=\"&EOMONTH(E$5,0))","v":0}]
[0,null,"Bridal",null,{"$f":"(INDEX('service input'!$F$10:$N$141,MATCH($C113,'service input'!$E$10:$E$140,0),MATCH(E$5-DAY(E$5)+1,referencemonth,1)+MATCH(\"MRP\",'service input'!$F$7:$N$7,0)-1))*F113","v":{"$error":"#VALUE!"}},{"$f":"SUMIFS(Master!$G$12:$G$4000,Master!$E$12:$E$4000,C113,Master!$B$12:$B$4000,\">=\"&E$5,Master!$B$12:$B$4000,\"<=\"&EOMONTH(E$5,0))","v":0}]
[0,null,"Reception",null,{"$f":"(INDEX('service input'!$F$10:$N$141,MATCH($C114,'service input'!$E$10:$E$140,0),MATCH(E$5-DAY(E$5)+1,referencemonth,1)+MATCH(\"MRP\",'service input'!$F$7:$N$7,0)-1))*F114","v":{"$error":"#VALUE!"}},{"$f":"SUMIFS(Master!$G$12:$G$4000,Master!$E$12:$E$4000,C114,Master!$B$12:$B$4000,\">=\"&E$5,Master!$B$12:$B$4000,\"<=\"&EOMONTH(E$5,0))","v":0}]
[0,null,0,null,{"$f":"(INDEX('service input'!$F$10:$N$141,MATCH($C115,'service input'!$E$10:$E$140,0),MATCH(E$5-DAY(E$5)+1,referencemonth,1)+MATCH(\"MRP\",'service input'!$F$7:$N$7,0)-1))*F115","v":{"$error":"#N/A"}},{"$f":"SUMIFS(Master!$G$12:$G$4000,Master!$E$12:$E$4000,C115,Master!$B$12:$B$4000,\">=\"&E$5,Master!$B$12:$B$4000,\"<=\"&EOMONTH(E$5,0))","v":0}]
[0,null,0,null,{"$f":"(INDEX('service input'!$F$10:$N$141,MATCH($C116,'service input'!$E$10:$E$140,0),MATCH(E$5-DAY(E$5)+1,referencemonth,1)+MATCH(\"MRP\",'service input'!$F$7:$N$7,0)-1))*F116","v":{"$error":"#N/A"}},{"$f":"SUMIFS(Master!$G$12:$G$4000,Master!$E$12:$E$4000,C116,Master!$B$12:$B$4000,\">=\"&E$5,Master!$B$12:$B$4000,\"<=\"&EOMONTH(E$5,0))","v":0}]
[0,"Others_Bride_Relatives_Friends","Sari Normal",null,{"$f":"(INDEX('service input'!$F$10:$N$141,MATCH($C117,'service input'!$E$10:$E$140,0),MATCH(E$5-DAY(E$5)+1,referencemonth,1)+MATCH(\"MRP\",'service input'!$F$7:$N$7,0)-1))*F117","v":0},{"$f":"SUMIFS(Master!$G$12:$G$4000,Master!$E$12:$E$4000,C117,Master!$B$12:$B$4000,\">=\"&E$5,Master!$B$12:$B$4000,\"<=\"&EOMONTH(E$5,0))","v":0}]
[0,null,"Hair do",null,{"$f":"(INDEX('service input'!$F$10:$N$141,MATCH($C118,'service input'!$E$10:$E$140,0),MATCH(E$5-DAY(E$5)+1,referencemonth,1)+MATCH(\"MRP\",'service input'!$F$7:$N$7,0)-1))*F118","v":0},{"$f":"SUMIFS(Master!$G$12:$G$4000,Master!$E$12:$E$4000,C118,Master!$B$12:$B$4000,\">=\"&E$5,Master!$B$12:$B$4000,\"<=\"&EOMONTH(E$5,0))","v":0}]
[0,null,0,null,{"$f":"(INDEX('service input'!$F$10:$N$141,MATCH($C119,'service input'!$E$10:$E$140,0),MATCH(E$5-DAY(E$5)+1,referencemonth,1)+MATCH(\"MRP\",'service input'!$F$7:$N$7,0)-1))*F119","v":{"$error":"#N/A"}},{"$f":"SUMIFS(Master!$G$12:$G$4000,Master!$E$12:$E$4000,C119,Master!$B$12:$B$4000,\">=\"&E$5,Master!$B$12:$B$4000,\"<=\"&EOMONTH(E$5,0))","v":0}]
[0,null,0,null,{"$f":"(INDEX('service input'!$F$10:$N$141,MATCH($C120,'service input'!$E$10:$E$140,0),MATCH(E$5-DAY(E$5)+1,referencemonth,1)+MATCH(\"MRP\",'service input'!$F$7:$N$7,0)-1))*F120","v":{"$error":"#N/A"}},{"$f":"SUMIFS(Master!$G$12:$G$4000,Master!$E$12:$E$4000,C120,Master!$B$12:$B$4000,\">=\"&E$5,Master!$B$12:$B$4000,\"<=\"&EOMONTH(E$5,0))","v":0}]
[0,"Bridal_packages","Full face threading",null,{"$f":"(INDEX('service input'!$F$10:$N$141,MATCH($C121,'service input'!$E$10:$E$140,0),MATCH(E$5-DAY(E$5)+1,referencemonth,1)+MATCH(\"MRP\",'service input'!$F$7:$N$7,0)-1))*F121","v":0},{"$f":"SUMIFS(Master!$G$12:$G$4000,Master!$E$12:$E$4000,C121,Master!$B$12:$B$4000,\">=\"&E$5,Master!$B$12:$B$4000,\"<=\"&EOMONTH(E$5,0))","v":0}]
[0,null,"full body bleach",null,{"$f":"(INDEX('service input'!$F$10:$N$141,MATCH($C122,'service input'!$E$10:$E$140,0),MATCH(E$5-DAY(E$5)+1,referencemonth,1)+MATCH(\"MRP\",'service input'!$F$7:$N$7,0)-1))*F122","v":0},{"$f":"SUMIFS(Master!$G$12:$G$4000,Master!$E$12:$E$4000,C122,Master!$B$12:$B$4000,\">=\"&E$5,Master!$B$12:$B$4000,\"<=\"&EOMONTH(E$5,0))","v":0}]
[0,null,"manicure",null,{"$f":"(INDEX('service input'!$F$10:$N$141,MATCH($C123,'service input'!$E$10:$E$140,0),MATCH(E$5-DAY(E$5)+1,referencemonth,1)+MATCH(\"MRP\",'service input'!$F$7:$N$7,0)-1))*F123","v":0},{"$f":"SUMIFS(Master!$G$12:$G$4000,Master!$E$12:$E$4000,C123,Master!$B$12:$B$4000,\">=\"&E$5,Master!$B$12:$B$4000,\"<=\"&EOMONTH(E$5,0))","v":0}]
[0,null,"pedicure",null,{"$f":"(INDEX('service input'!$F$10:$N$141,MATCH($C124,'service input'!$E$10:$E$140,0),MATCH(E$5-DAY(E$5)+1,referencemonth,1)+MATCH(\"MRP\",'service input'!$F$7:$N$7,0)-1))*F124","v":0},{"$f":"SUMIFS(Master!$G$12:$G$4000,Master!$E$12:$E$4000,C124,Master!$B$12:$B$4000,\">=\"&E$5,Master!$B$12:$B$4000,\"<=\"&EOMONTH(E$5,0))","v":0}]
[0,null,"hair cut",null,{"$f":"(INDEX('service input'!$F$10:$N$141,MATCH($C125,'service input'!$E$10:$E$140,0),MATCH(E$5-DAY(E$5)+1,referencemonth,1)+MATCH(\"MRP\",'service input'!$F$7:$N$7,0)-1))*F125","v":0},{"$f":"SUMIFS(Master!$G$12:$G$4000,Master!$E$12:$E$4000,C125,Master!$B$12:$B$4000,\">=\"&E$5,Master!$B$12:$B$4000,\"<=\"&EOMONTH(E$5,0))","v":0}]
[0,null,"hair spa & b organic facials",null,{"$f":"(INDEX('service input'!$F$10:$N$141,MATCH($C126,'service input'!$E$10:$E$140,0),MATCH(E$5-DAY(E$5)+1,referencemonth,1)+MATCH(\"MRP\",'service input'!$F$7:$N$7,0)-1))*F126","v":0},{"$f":"SUMIFS(Master!$G$12:$G$4000,Master!$E$12:$E$4000,C126,Master!$B$12:$B$4000,\">=\"&E$5,Master!$B$12:$B$4000,\"<=\"&EOMONTH(E$5,0))","v":0}]
[0,null,0,null,{"$f":"(INDEX('service input'!$F$10:$N$141,MATCH($C127,'service input'!$E$10:$E$140,0),MATCH(E$5-DAY(E$5)+1,referencemonth,1)+MATCH(\"MRP\",'service input'!$F$7:$N$7,0)-1))*F127","v":{"$error":"#N/A"}},{"$f":"SUMIFS(Master!$G$12:$G$4000,Master!$E$12:$E$4000,C127,Master!$B$12:$B$4000,\">=\"&E$5,Master!$B$12:$B$4000,\"<=\"&EOMONTH(E$5,0))","v":0}]
[0,null,0,null,{"$f":"(INDEX('service input'!$F$10:$N$141,MATCH($C128,'service input'!$E$10:$E$140,0),MATCH(E$5-DAY(E$5)+1,referencemonth,1)+MATCH(\"MRP\",'service input'!$F$7:$N$7,0)-1))*F128","v":{"$error":"#N/A"}},{"$f":"SUMIFS(Master!$G$12:$G$4000,Master!$E$12:$E$4000,C128,Master!$B$12:$B$4000,\">=\"&E$5,Master!$B$12:$B$4000,\"<=\"&EOMONTH(E$5,0))","v":0}]
[0,"Others",0,null,{"$f":"(INDEX('service input'!$F$10:$N$141,MATCH($C129,'service input'!$E$10:$E$140,0),MATCH(E$5-DAY(E$5)+1,referencemonth,1)+MATCH(\"MRP\",'service input'!$F$7:$N$7,0)-1))*F129","v":{"$error":"#N/A"}},{"$f":"SUMIFS(Master!$G$12:$G$4000,Master!$E$12:$E$4000,C129,Master!$B$12:$B$4000,\">=\"&E$5,Master!$B$12:$B$4000,\"<=\"&EOMONTH(E$5,0))","v":0}]
[0,null,0,null,{"$f":"(INDEX('service input'!$F$10:$N$141,MATCH($C130,'service input'!$E$10:$E$140,0),MATCH(E$5-DAY(E$5)+1,referencemonth,1)+MATCH(\"MRP\",'service input'!$F$7:$N$7,0)-1))*F130","v":{"$error":"#N/A"}},{"$f":"SUMIFS(Master!$G$12:$G$4000,Master!$E$12:$E$4000,C130,Master!$B$12:$B$4000,\">=\"&E$5,Master!$B$12:$B$4000,\"<=\"&EOMONTH(E$5,0))","v":0}]
[0,null,0,null,{"$f":"(INDEX('service input'!$F$10:$N$141,MATCH($C131,'service input'!$E$10:$E$140,0),MATCH(E$5-DAY(E$5)+1,referencemonth,1)+MATCH(\"MRP\",'service input'!$F$7:$N$7,0)-1))*F131","v":{"$error":"#N/A"}},{"$f":"SUMIFS(Master!$G$12:$G$4000,Master!$E$12:$E$4000,C131,Master!$B$12:$B$4000,\">=\"&E$5,Master!$B$12:$B$4000,\"<=\"&EOMONTH(E$5,0))","v":0}]
[0,null,0,null,{"$f":"(INDEX('service input'!$F$10:$N$141,MATCH($C132,'service input'!$E$10:$E$140,0),MATCH(E$5-DAY(E$5)+1,referencemonth,1)+MATCH(\"MRP\",'service input'!$F$7:$N$7,0)-1))*F132","v":{"$error":"#N/A"}},{"$f":"SUMIFS(Master!$G$12:$G$4000,Master!$E$12:$E$4000,C132,Master!$B$12:$B$4000,\">=\"&E$5,Master!$B$12:$B$4000,\"<=\"&EOMONTH(E$5,0))","v":0}]
[0,null,0,null,{"$f":"(INDEX('service input'!$F$10:$N$141,MATCH($C133,'service input'!$E$10:$E$140,0),MATCH(E$5-DAY(E$5)+1,referencemonth,1)+MATCH(\"MRP\",'service input'!$F$7:$N$7,0)-1))*F133","v":{"$error":"#N/A"}},{"$f":"SUMIFS(Master!$G$12:$G$4000,Master!$E$12:$E$4000,C133,Master!$B$12:$B$4000,\">=\"&E$5,Master!$B$12:$B$4000,\"<=\"&EOMONTH(E$5,0))","v":0}]
[0,null,0,null,{"$f":"(INDEX('service input'!$F$10:$N$141,MATCH($C134,'service input'!$E$10:$E$140,0),MATCH(E$5-DAY(E$5)+1,referencemonth,1)+MATCH(\"MRP\",'service input'!$F$7:$N$7,0)-1))*F134","v":{"$error":"#N/A"}},{"$f":"SUMIFS(Master!$G$12:$G$4000,Master!$E$12:$E$4000,C134,Master!$B$12:$B$4000,\">=\"&E$5,Master!$B$12:$B$4000,\"<=\"&EOMONTH(E$5,0))","v":0}]
[0,null,0,null,{"$f":"(INDEX('service input'!$F$10:$N$141,MATCH($C135,'service input'!$E$10:$E$140,0),MATCH(E$5-DAY(E$5)+1,referencemonth,1)+MATCH(\"MRP\",'service input'!$F$7:$N$7,0)-1))*F135","v":{"$error":"#N/A"}},{"$f":"SUMIFS(Master!$G$12:$G$4000,Master!$E$12:$E$4000,C135,Master!$B$12:$B$4000,\">=\"&E$5,Master!$B$12:$B$4000,\"<=\"&EOMONTH(E$5,0))","v":0}]
[0,null,0,null,{"$f":"(INDEX('service input'!F138:N269,MATCH($C136,'service input'!E138:E268,0),MATCH(E$5-DAY(E$5)+1,referencemonth,1)+MATCH(\"MRP\",'service input'!F135:N135,0)-1))*F136","v":{"$error":"#N/A"}},{"$f":"SUMIFS(Master!$G$12:$G$4000,Master!$E$12:$E$4000,C136,Master!$B$12:$B$4000,\">=\"&E$5,Master!$B$12:$B$4000,\"<=\"&EOMONTH(E$5,0))","v":0}]